Workbook

Sheet смета04.04.11
J1: Ю.А.Голодяев
A2: БЮДЖЕТНАЯ СМЕТА
E3: НА 04 апреля 2011 ГОД
A4: Получатель средств бюджета | J4: коды
A5: МДОУ № 137 | I5: ОКПО
I6: СРРПБС
A7: Единица измерения : руб. | I7: ОКЕИ | J7: 383
A9: Наименование расхода | B9: Код | G9: Сумма , руб | H9: в том чисе по кварталам
B10: раздел | C10: подраздел | D10: целевая статья расхода | E10: вид расхода | F10: КОСГУ | H10: 1квартал | I10: 2квартал | J10: 3квартал | K10: 4квартал
A11: 1 | B11: 2 | C11: 3 | D11: 4 | E11: 5 | F11: 6 | G11: 7 | H11: 8 | I11: 9 | J11: 10 | K11: 11
A12: Расходы, всего | G12: =H12+I12+J12+K12 -> 46017736.15 | H12: =H13+H24+H27+H38+H18+H21+H41 -> 2448470.88 | I12: =I13+I24+I27+I38+I18+I21+I41 -> 10674656.27 | J12: =J13+J18+J21+J24+J27+J38+J41 -> 10650038 | K12: =K13+K24+K27+K38+K18+K21+K41 -> 22244571
A13: Обеспечение деятельности подведомственных учреждений | B13: 974 | C13: 0701 | D13: 4209900 | G13: =H13+I13+J13+K13 -> 1750394 | H13: =H14+H16 -> 279913 | I13: =I14+I16 -> 535195 | J13: =J14+J16 -> 730993 | K13: =K14+K16 -> 204293
A14: Расходы за счет доходов от платных услуг | B14: 974 | C14: 0701 | D14: 4209900 | E14: 900 | G14: 1744394 | H14: =H15 -> 279913 | I14: =I15 -> 532195 | J14: =J15 -> 727993 | K14: =K15 -> 204293
A15: Увеличение стоимости материальных запасов | B15: 974 | C15: 0701 | D15: 4209900 | E15: 900 | F15: 340 | G15: 1744394 | H15: 279913 | I15: 532195 | J15: 727993 | K15: 204293
A16: Расходы за счет прочих безвозмездных поступлений | B16: 974 | C16: 0701 | D16: 4209900 | E16: 910 | G16: =H16+I16+J16+K16 -> 6000 | H16: =H17 -> 0 | I16: =I17 -> 3000 | J16: =J17 -> 3000 | K16: =K17 -> 0
A17: Увеличение стоимости основных средств | B17: 974 | C17: 0701 | D17: 4209900 | E17: 910 | F17: 310 | G17: 6000 | I17: 3000 | J17: 3000
A18: Долгосрочная целевая программа "Укрепление материально-технической базы и проведение капитального ремонта зданий и сооружений учреждений, подведомственных Управлению образования города Пензы и здания Управления образования города Пензы на 2010-2012 г.г." | B18: 974 | C18: 0701 | D18: 7950600 | G18: 21236128.12 | H18: =H19 -> 100000 | I18: 3132944.12 | J18: 3328648 | K18: 14674536
A19: Расходы на реализацию долгосрочных целевых программ | B19: 974 | C19: 0701 | D19: 7950600 | E19: 950 | G19: 21236128.12 | H19: 100000 | I19: 3132944.12 | J19: 3328648 | K19: 14674536
A20: Прочие работы , услуги | B20: 974 | C20: 0701 | D20: 7950600 | E20: 950 | F20: 225 | G20: 21236128.12 | H20: 100000 | I20: 3132944.12 | J20: 3328648 | K20: 14674536
A21: Долгосрочная целевая программа Энергосбережения и повышения энергоэффективности в городе Пензе на период 2010-2020 годов | B21: 974 | C21: 0701 | D21: 7950800 | G21: 265442 | H21: 0 | I21: 88552 | J21: 132614 | K21: 44276
A22: Расходы на реализацию долгосрочных целевых программ | B22: 974 | C22: 0701 | D22: 7950800 | E22: 950 | G22: 265442 | H22: 0 | I22: 88552 | J22: 132614 | K22: 44276
A23: Прочие работы, услуги | B23: 974 | C23: 0701 | D23: 7950800 | E23: 950 | F23: 226 | G23: 265442 | H23: 0 | I23: 88552 | J23: 132614 | K23: 44276
A24: Долгосрочная целевая программв "Многодетная семья,2009-2010годы" | B24: 974 | C24: 0701 | D24: 7953000 | G24: 23495 | H24: =H25 -> 4219 | I24: 3738 | J24: 8747 | K24: 6791
A25: Расходы на реализацию долгосрочных целевых программ | B25: 974 | C25: 0701 | D25: 7953000 | E25: 950 | G25: 23495 | H25: 4219 | I25: 3738 | J25: 8747 | K25: 6791
A26: Увеличение стоимости материальных запасов | B26: 974 | C26: 0701 | D26: 7953000 | E26: 950 | F26: 340 | G26: 23495 | H26: 4219 | I26: 3738 | J26: 8747 | K26: 6791
A27: Организация предоставления общедоступного бесплатного дошкольного образования и воспитания, содержание ребенка в дошкольном образовательном учреждении | B27: 974 | C27: 0701 | D27: 7969741 | G27: 21418578.03 | H27: =H28 -> 1979587.88 | I27: =I28 -> 6727825.15 | J27: =J28 -> 5538449 | K27: =K28 -> 7172716
A28: Оказание услуг подведомственными учреждениями | B28: 974 | C28: 0701 | D28: 7969741 | E28: 901 | G28: 21418578.03 | H28: =H29+H30+H31+H32+H33+H34+H35+H36+H37 -> 1979587.88 | I28: =I29+I30+I31+I32+I33+I34+I35+I36+I37 -> 6727825.15 | J28: =J29+J30+J31+J32+J33+J34+J35+J36+J37 -> 5538449 | K28: =K29+K30+K31+K32+K33+K34+K35+K36+K37 -> 7172716
A29: Заработная плата | B29: 974 | C29: 0701 | D29: 7969741 | E29: 901 | F29: 211 | G29: 13525557.41 | H29: 930865.73 | I29: 4404691.68 | J29: 3763161 | K29: 4426839
A30: Прочие выплаты | B30: 974 | C30: 0701 | D30: 7969741 | E30: 901 | F30: 212 | G30: 100100 | H30: 6200 | I30: 29850 | J30: 27450 | K30: 36600
A31: Начисления на оплату труда | B31: 974 | C31: 0701 | D31: 7969741 | E31: 901 | F31: 213 | G31: 4691941.45 | H31: 304383.98 | I31: 1497102.47 | J31: 1109301 | K31: 1781154
A32: Услуги связи | B32: 974 | C32: 0701 | D32: 7969741 | E32: 901 | F32: 221 | G32: 11867 | H32: 2967 | I32: 2967 | J32: 2967 | K32: 2966
A33: Коммунальные услуги | B33: 974 | C33: 0701 | D33: 7969741 | E33: 901 | F33: 223 | G33: 1385498 | H33: 499131 | I33: 215776 | J33: 182043 | K33: 488548
A34: Работы, услуги по содержанию имущества | B34: 974 | C34: 0701 | D34: 7969741 | E34: 901 | F34: 225 | G34: 64283.17 | H34: 25059.17 | I34: 10515 | J34: 18193 | K34: 10516
A35: Прочие работы, услуги, в том числе | B35: 974 | C35: 0701 | D35: 7969741 | E35: 901 | F35: 226 | G35: 202879 | H35: 38565 | I35: 145753 | J35: 15365 | K35: 3196
A36: Прочие расходы | B36: 974 | C36: 0701 | D36: 7969741 | E36: 901 | F36: 290 | G36: 1138449 | H36: 112335 | I36: 341863 | J36: 341863 | K36: 342388
A37: Увеличение стоимости материальных запасов | B37: 974 | C37: 0701 | D37: 7969741 | E37: 901 | F37: 340 | G37: 298003 | H37: 60081 | I37: 79307 | J37: 78106 | K37: 80509
A38: Ведомственная целевая программа развития "Дошкольное детство(2011-2013гг.)" | B38: 974 | C38: 0701 | D38: 7976302 | G38: 525457 | H38: =H39 -> 84751 | I38: 139839 | J38: 158908 | K38: 141959
A39: Расходы на реализацию ведомственных целевых программ | B39: 974 | C39: 0701 | D39: 7976302 | E39: 951 | G39: 525457 | H39: 84751 | I39: 139839 | J39: 158908 | K39: 141959
A40: Прочие работы, услуги | B40: 974 | C40: 0701 | D40: 7976302 | E40: 951 | F40: 340 | G40: 525457 | H40: 84751 | I40: 139839 | J40: 158908 | K40: 141959
A41: Долгосрочная целевая программа города Пензы "Здоровый ребенок" на 2011-2013 годы | B41: 974 | C41: 0701 | D41: 7950101 | G41: 798242 | H41: =H42 -> 0 | I41: =I42 -> 46563 | J41: 751679 | K41: 0
A42: Расходы на реализацию долгосрочных целевых программ | B42: 974 | C42: 0701 | D42: 7950101 | E42: 950 | G42: 798242 | H42: 0 | I42: =I43+I44 -> 46563 | J42: =J43+J44 -> 751679 | K42: 0
A43: Увеличение стоимости основных средств | B43: 974 | C43: 0701 | D43: 6000200 | E43: 950 | F43: 310 | G43: 58242 | H43: 0 | I43: 46563 | J43: 11679 | K43: 0
A44: Прочие работы, услуги | B44: 974 | C44: 0701 | D44: 6000200 | E44: 950 | F44: 226 | G44: 740000 | H44: =H45 -> 0 | I44: =I45 -> 0 | J44: 740000 | K44: =K45 -> 0
A46: Заведующая | D46: С.В.Петрунина
A47: Гл.бухгалтер | D47: О.А.Зайцева
A48: дата

Sheet смета 22.03.11
H1: УТВЕРЖДАЮ
H2: Начальник Управления образования
H3: города Пензы
J4: Ю.А.Голодяев
A5: БЮДЖЕТНАЯ СМЕТА
E6: НА 22 марта. 2011 ГОД
A7: Получатель средств бюджета | J7: коды
A8: МДОУ № 137 | I8: ОКПО
I9: СРРПБС
A10: Единица измерения : руб. | I10: ОКЕИ | J10: 383
A12: Наименование расхода | B12: Код | G12: Сумма , руб | H12: в том чисе по кварталам
B13: раздел | C13: подраздел | D13: целевая статья расхода | E13: вид расхода | F13: КОСГУ | H13: 1квартал | I13: 2квартал | J13: 3квартал | K13: 4квартал
A14: 1 | B14: 2 | C14: 3 | D14: 4 | E14: 5 | F14: 6 | G14: 7 | H14: 8 | I14: 9 | J14: 10 | K14: 11
A15: Расходы, всего | G15: =H15+I15+J15+K15 -> 46019864.15 | H15: =H16+H27+H30+H41+H21+H24 -> 4478138 | I15: =I16+I27+I30+I41+I21+I24+I44 -> 8647641.15 | J15: =J16+J21+J24+J27+J30+J41+J44 -> 10650038 | K15: =K16+K27+K30+K41+K21+K24 -> 22244047
A16: Обеспечение деятельности подведомственных учреждений | B16: 974 | C16: 0701 | D16: 4209900 | G16: =H16+I16+J16+K16 -> 1750394 | H16: =H17+H19 -> 279913 | I16: =I17+I19 -> 535195 | J16: =J17+J19 -> 730993 | K16: =K17+K19 -> 204293
A17: Расходы за счет доходов от платных услуг | B17: 974 | C17: 0701 | D17: 4209900 | E17: 900 | G17: 1744394 | H17: =H18 -> 279913 | I17: =I18 -> 532195 | J17: =J18 -> 727993 | K17: =K18 -> 204293
A18: Увеличение стоимости материальных запасов | B18: 974 | C18: 0701 | D18: 4209900 | E18: 900 | F18: 340 | G18: 1744394 | H18: 279913 | I18: 532195 | J18: 727993 | K18: 204293
A19: Расходы за счет прочих безвозмездных поступлений | B19: 974 | C19: 0701 | D19: 4209900 | E19: 910 | G19: =H19+I19+J19+K19 -> 6000 | H19: =H20 -> 0 | I19: =I20 -> 3000 | J19: =J20 -> 3000 | K19: =K20 -> 0
A20: Увеличение стоимости основных средств | B20: 974 | C20: 0701 | D20: 4209900 | E20: 910 | F20: 310 | G20: 6000 | I20: 3000 | J20: 3000
A21: Долгосрочная целевая программа "Укрепление материально-технической базы и проведение капитального ремонта зданий и сооружений учреждений, подведомственных Управлению образования города Пензы и здания Управления образования города Пензы на 2010-2012 г.г." | B21: 974 | C21: 0701 | D21: 7950600 | G21: 21236128.12 | H21: =H22 -> 2082467.12 | I21: 1150477 | J21: 3328648 | K21: 14674536
A22: Расходы на реализацию долгосрочных целевых программ | B22: 974 | C22: 0701 | D22: 7950600 | E22: 950 | G22: 21236128.12 | H22: 2082467.12 | I22: 1150477 | J22: 3328648 | K22: 14674536
A23: Прочие работы , услуги | B23: 974 | C23: 0701 | D23: 7950600 | E23: 950 | F23: 225 | G23: 21236128.12 | H23: 2082467.12 | I23: 1150477 | J23: 3328648 | K23: 14674536
A24: Долгосрочная целевая программа Энергосбережения и повышения энергоэффективности в городе Пензе на период 2010-2020 годов | B24: 974 | C24: 0701 | D24: 7950800 | G24: 265442 | H24: 44276 | I24: 44276 | J24: 132614 | K24: 44276
A25: Расходы на реализацию долгосрочных целевых программ | B25: 974 | C25: 0701 | D25: 7950800 | E25: 950 | G25: 265442 | H25: 44276 | I25: 44276 | J25: 132614 | K25: 44276
A26: Прочие работы, услуги | B26: 974 | C26: 0701 | D26: 7950800 | E26: 950 | F26: 226 | G26: 265442 | H26: 44276 | I26: 44276 | J26: 132614 | K26: 44276
A27: Долгосрочная целевая программв "Многодетная семья,2009-2010годы" | B27: 974 | C27: 0701 | D27: 7953000 | G27: 25623 | H27: =H28 -> 4219 | I27: 5866 | J27: 8747 | K27: 6791
A28: Расходы на реализацию долгосрочных целевых программ | B28: 974 | C28: 0701 | D28: 7953000 | E28: 950 | G28: 25623 | H28: 4219 | I28: 5866 | J28: 8747 | K28: 6791
A29: Увеличение стоимости материальных запасов | B29: 974 | C29: 0701 | D29: 7953000 | E29: 950 | F29: 340 | G29: 25623 | H29: 4219 | I29: 5866 | J29: 8747 | K29: 6791
A30: Организация предоставления общедоступного бесплатного дошкольного образования и воспитания, содержание ребенка в дошкольном образовательном учреждении | B30: 974 | C30: 0701 | D30: 7969741 | G30: 21418578.03 | H30: =H31 -> 1982511.88 | I30: =I31 -> 6725425.15 | J30: =J31 -> 5538449 | K30: =K31 -> 7172192
A31: Оказание услуг подведомственными учреждениями | B31: 974 | C31: 0701 | D31: 7969741 | E31: 901 | G31: 21418578.03 | H31: =H32+H33+H34+H35+H36+H37+H38+H39+H40 -> 1982511.88 | I31: =I32+I33+I34+I35+I36+I37+I38+I39+I40 -> 6725425.15 | J31: =J32+J33+J34+J35+J36+J37+J38+J39+J40 -> 5538449 | K31: =K32+K33+K34+K35+K36+K37+K38+K39+K40 -> 7172192
A32: Заработная плата | B32: 974 | C32: 0701 | D32: 7969741 | E32: 901 | F32: 211 | G32: 13525557.41 | H32: 930865.73 | I32: 4404691.68 | J32: 3763161 | K32: 4426839
A33: Прочие выплаты | B33: 974 | C33: 0701 | D33: 7969741 | E33: 901 | F33: 212 | G33: 100100 | H33: 8600 | I33: 27450 | J33: 27450 | K33: 36600
A34: Начисления на оплату труда | B34: 974 | C34: 0701 | D34: 7969741 | E34: 901 | F34: 213 | G34: 4691941.45 | H34: 304383.98 | I34: 1497102.47 | J34: 1109301 | K34: 1781154
A35: Услуги связи | B35: 974 | C35: 0701 | D35: 7969741 | E35: 901 | F35: 221 | G35: 11867 | H35: 2967 | I35: 2967 | J35: 2967 | K35: 2966
A36: Коммунальные услуги | B36: 974 | C36: 0701 | D36: 7969741 | E36: 901 | F36: 223 | G36: 1385498 | H36: 499131 | I36: 215776 | J36: 182043 | K36: 488548
A37: Работы, услуги по содержанию имущества | B37: 974 | C37: 0701 | D37: 7969741 | E37: 901 | F37: 225 | G37: 64283.17 | H37: 25059.17 | I37: 10515 | J37: 18193 | K37: 10516
A38: Прочие работы, услуги, в том числе | B38: 974 | C38: 0701 | D38: 7969741 | E38: 901 | F38: 226 | G38: 202879 | H38: 38565 | I38: 145753 | J38: 15365 | K38: 3196
A39: Прочие расходы | B39: 974 | C39: 0701 | D39: 7969741 | E39: 901 | F39: 290 | G39: 1138449 | H39: 112859 | I39: 341863 | J39: 341863 | K39: 341864
A40: Увеличение стоимости материальных запасов | B40: 974 | C40: 0701 | D40: 7969741 | E40: 901 | F40: 340 | G40: 298003 | H40: 60081 | I40: 79307 | J40: 78106 | K40: 80509
A41: Ведомственная целевая программа развития "Дошкольное детство(2011-2013гг.)" | B41: 974 | C41: 0701 | D41: 7976302 | G41: 525457 | H41: =H42 -> 84751 | I41: 139839 | J41: 158908 | K41: 141959
A42: Расходы на реализацию ведомственных целевых программ | B42: 974 | C42: 0701 | D42: 7976302 | E42: 951 | G42: 525457 | H42: 84751 | I42: 139839 | J42: 158908 | K42: 141959
A43: Прочие работы, услуги | B43: 974 | C43: 0701 | D43: 7976302 | E43: 951 | F43: 340 | G43: 525457 | H43: 84751 | I43: 139839 | J43: 158908 | K43: 141959
A44: Долгосрочная целевая программа города Пензы "Здоровый ребенок" на 2011-2013 годы | B44: 974 | C44: 0701 | D44: 7950101 | G44: 798242 | H44: =H45 -> 0 | I44: =I45 -> 46563 | J44: 751679 | K44: 0
A45: Расходы на реализацию долгосрочных целевых программ | B45: 974 | C45: 0701 | D45: 7950101 | E45: 950 | G45: 798242 | H45: 0 | I45: =I46+I47 -> 46563 | J45: =J46+J47 -> 751679 | K45: 0
A46: Увеличение стоимости основных средств | B46: 974 | C46: 0701 | D46: 6000200 | E46: 950 | F46: 310 | G46: 58242 | H46: 0 | I46: 46563 | J46: 11679 | K46: 0
A47: Прочие работы, услуги | B47: 974 | C47: 0701 | D47: 6000200 | E47: 950 | F47: 226 | G47: 740000 | H47: =H48 -> 0 | I47: =I48 -> 0 | J47: 740000 | K47: =K48 -> 0
A49: Заведующая | D49: С.В.Петрунина
A50: Гл.бухгалтер | D50: О.А.Зайцева
A51: дата

Sheet смета19.05.11
J1: Ю.А.Голодяев
A2: БЮДЖЕТНАЯ СМЕТА
E3: НА 19 мая 2011 ГОД
A4: Получатель средств бюджета | J4: коды
A5: МДОУ № 137 | I5: ОКПО
I6: СРРПБС
A7: Единица измерения : руб. | I7: ОКЕИ | J7: 383
A9: Наименование расхода | B9: Код | G9: Сумма , руб | H9: в том чисе по кварталам
B10: раздел | C10: подраздел | D10: целевая статья расхода | E10: вид расхода | F10: КОСГУ | H10: 1квартал | I10: 2квартал | J10: 3квартал | K10: 4квартал
A11: 1 | B11: 2 | C11: 3 | D11: 4 | E11: 5 | F11: 6 | G11: 7 | H11: 8 | I11: 9 | J11: 10 | K11: 11
A12: Расходы, всего | G12: =H12+I12+J12+K12 -> 51195519.17 | H12: =H13+H18+H22+H25+H28+H39+H42 -> 4478138 | I12: =I13+I18+I22+I25+I28+I39+I42 -> 12245837.84 | J12: =J13+J18+J22+J25+J28+J39+J42 -> 10439464.77 | K12: =K13+K18+K22+K25+K28+K39+K42 -> 24032078.56
A13: Обеспечение деятельности подведомственных учреждений | B13: 974 | C13: 0701 | D13: 4209900 | G13: =H13+I13+J13+K13 -> 3913723.03 | H13: =H14+H16 -> 279913 | I13: =I14+I16 -> 1169378 | J13: =J14+J16 -> 1913950.03 | K13: =K14+K16 -> 550482
A14: Расходы за счет доходов от платных услуг | B14: 974 | C14: 0701 | D14: 4209900 | E14: 900 | G14: 3907723.03 | H14: =H15 -> 279913 | I14: =I15 -> 1166378 | J14: =J15 -> 1910950.03 | K14: =K15 -> 550482
A15: Увеличение стоимости материальных запасов | B15: 974 | C15: 0701 | D15: 4209900 | E15: 900 | F15: 340 | G15: 3907723.03 | H15: 279913 | I15: 1166378 | J15: 1910950.03 | K15: 550482
A16: Расходы за счет прочих безвозмездных поступлений | B16: 974 | C16: 0701 | D16: 4209900 | E16: 910 | G16: =H16+I16+J16+K16 -> 6000 | H16: =H17 -> 0 | I16: =I17 -> 3000 | J16: =J17 -> 3000 | K16: =K17 -> 0
A17: Увеличение стоимости основных средств | B17: 974 | C17: 0701 | D17: 4209900 | E17: 910 | F17: 310 | G17: 6000 | I17: 3000 | J17: 3000
A18: Долгосрочная целевая программа "Укрепление материально-технической базы и проведение капитального ремонта зданий и сооружений учреждений, подведомственных Управлению образования города Пензы и здания Управления образования города Пензы на 2010-2012 г.г." | B18: 974 | C18: 0701 | D18: 7950600 | G18: 20587190.12 | H18: =H19 -> 2082467.12 | I18: =I19 -> 2676531 | J18: =J19 -> 1153656 | K18: =K19 -> 14674536
A19: Расходы на реализацию долгосрочных целевых программ | B19: 974 | C19: 0701 | D19: 7950600 | E19: 950 | G19: 20587190.12 | H19: =H21 -> 2082467.12 | I19: =I20+I21 -> 2676531 | J19: =J21 -> 1153656 | K19: =K21 -> 14674536
A20: Увеличение стоимости основных средств | B20: 974 | C20: 0701 | D20: 7950600 | E20: 950 | F20: 310 | G20: =H20+I20+J20+K20 -> 1151020 | I20: 1151020
A21: Прочие работы , услуги | B21: 974 | C21: 0701 | D21: 7950600 | E21: 950 | F21: 225 | G21: 19436170.12 | H21: 2082467.12 | I21: 1525511 | J21: 1153656 | K21: 14674536
A22: Расходы на реализацию долгосрочных целевых программ | B22: 974 | C22: 0701 | D22: 7950800 | E22: 950 | G22: 265442 | H22: =H24 -> 44276 | I22: =I23+I24 -> 44276 | J22: =J23+J24 -> 132614 | K22: =K23+K24 -> 44276
A23: Работы, услуги по содержанию имущества | B23: 974 | C23: 0701 | D23: 7950800 | E23: 950 | F23: 225 | G23: =H23+I23+J23+K23 -> 124369.36 | I23: 28894.68 | J23: 81027.34 | K23: 14447.34
A24: Прочие работы, услуги | B24: 974 | C24: 0701 | D24: 7950800 | E24: 950 | F24: 226 | G24: 141072.64 | H24: 44276 | I24: 15381.32 | J24: 51586.66 | K24: 29828.66
A25: Долгосрочная целевая программв "Многодетная семья,2009-2010годы" | B25: 974 | C25: 0701 | D25: 7953000 | G25: 38512 | H25: =H26 -> 4219 | I25: 4161 | J25: 18247 | K25: 11885
A26: Расходы на реализацию долгосрочных целевых программ | B26: 974 | C26: 0701 | D26: 7953000 | E26: 950 | G26: 38512 | H26: 4219 | I26: 4161 | J26: 18247 | K26: 11885
A27: Увеличение стоимости материальных запасов | B27: 974 | C27: 0701 | D27: 7953000 | E27: 950 | F27: 340 | G27: 38512 | H27: 4219 | I27: 4161 | J27: 18247 | K27: 11885
A28: Организация предоставления общедоступного бесплатного дошкольного образования и воспитания, содержание ребенка в дошкольном образовательном учреждении | B28: 974 | C28: 0701 | D28: 7969741 | G28: 24049413.5 | H28: =H29 -> 1982511.88 | I28: =I29 -> 7796241.92 | J28: =J29 -> 5980497.7 | K28: =K29 -> 8290162
A29: Оказание услуг подведомственными учреждениями | B29: 974 | C29: 0701 | D29: 7969741 | E29: 901 | G29: 24049413.5 | H29: =H30+H31+H32+H33+H34+H35+H36+H37+H38 -> 1982511.88 | I29: =I30+I31+I32+I33+I34+I35+I36+I37+I38 -> 7796241.92 | J29: =J30+J31+J32+J33+J34+J35+J36+J37+J38 -> 5980497.7 | K29: =K30+K31+K32+K33+K34+K35+K36+K37+K38 -> 8290162
A30: Заработная плата | B30: 974 | C30: 0701 | D30: 7969741 | E30: 901 | F30: 211 | G30: 13647407.16 | H30: 930865.73 | I30: 4577041.43 | J30: 3738161 | K30: 4401339
A31: Прочие выплаты | B31: 974 | C31: 0701 | D31: 7969741 | E31: 901 | F31: 212 | G31: 92900 | H31: 8600 | I31: 29050 | J31: 27450 | K31: 27800
A32: Начисления на оплату труда | B32: 974 | C32: 0701 | D32: 7969741 | E32: 901 | F32: 213 | G32: 4750884.9 | H32: 304383.98 | I32: 1556045.92 | J32: 1109301 | K32: 1781154
A33: Услуги связи | B33: 974 | C33: 0701 | D33: 7969741 | E33: 901 | F33: 221 | G33: 33181.95 | H33: 2967 | I33: 11927.95 | J33: 9194 | K33: 9093
A34: Коммунальные услуги | B34: 974 | C34: 0701 | D34: 7969741 | E34: 901 | F34: 223 | G34: 3059396.5 | H34: 499131 | I34: 665918.5 | J34: 424518 | K34: 1469829
A35: Работы, услуги по содержанию имущества | B35: 974 | C35: 0701 | D35: 7969741 | E35: 901 | F35: 225 | G35: 170212.78 | H35: 25059.17 | I35: 60570.61 | J35: 54640 | K35: 29943
A36: Прочие работы, услуги, в том числе | B36: 974 | C36: 0701 | D36: 7969741 | E36: 901 | F36: 226 | G36: 239467.27 | H36: 38565 | I36: 122646.57 | J36: 65472.7 | K36: 12783
A37: Прочие расходы | B37: 974 | C37: 0701 | D37: 7969741 | E37: 901 | F37: 290 | G37: 1137142.7 | H37: 112859 | I37: 340556.7 | J37: 341863 | K37: 341864
A38: Увеличение стоимости материальных запасов | B38: 974 | C38: 0701 | D38: 7969741 | E38: 901 | F38: 340 | G38: 918820.24 | H38: 60081 | I38: 432484.24 | J38: 209898 | K38: 216357
A39: Ведомственная целевая программа развития "Дошкольное детство(2011-2013гг.)" | B39: 974 | C39: 0701 | D39: 7976302 | G39: 1542996.52 | H39: =H40 -> 84751 | I39: 508686.92 | J39: 488821.04 | K39: 460737.56
A40: Расходы на реализацию ведомственных целевых программ | B40: 974 | C40: 0701 | D40: 7976302 | E40: 951 | G40: 1542996.52 | H40: 84751 | I40: 508686.92 | J40: 488821.04 | K40: 460737.56
A41: Прочие работы, услуги | B41: 974 | C41: 0701 | D41: 7976302 | E41: 951 | F41: 340 | G41: 1542996.52 | H41: 84751 | I41: 508686.92 | J41: 488821.04 | K41: 460737.56
A42: Долгосрочная целевая программа города Пензы "Здоровый ребенок" на 2011-2013 годы | B42: 974 | C42: 0701 | D42: 7950101 | G42: 798242 | H42: =H43 -> 0 | I42: =I43 -> 46563 | J42: 751679 | K42: 0
A43: Расходы на реализацию долгосрочных целевых программ | B43: 974 | C43: 0701 | D43: 7950101 | E43: 950 | G43: 798242 | H43: 0 | I43: =I44+I45 -> 46563 | J43: =J44+J45 -> 751679 | K43: 0
A44: Увеличение стоимости основных средств | B44: 974 | C44: 0701 | D44: 6000200 | E44: 950 | F44: 310 | G44: 58242 | H44: 0 | I44: 46563 | J44: 11679 | K44: 0
A45: Прочие работы, услуги | B45: 974 | C45: 0701 | D45: 6000200 | E45: 950 | F45: 226 | G45: 740000 | H45: =H46 -> 0 | I45: =I46 -> 0 | J45: 740000 | K45: =K46 -> 0
A47: Заведующая | D47: С.В.Петрунина
A48: Гл.бухгалтер | D48: О.А.Зайцева

Sheet смета28.04.11
J1: Ю.А.Голодяев
A2: БЮДЖЕТНАЯ СМЕТА
E3: НА 28 апреля 2011 ГОД
A4: Получатель средств бюджета | J4: коды
A5: МДОУ № 137 | I5: ОКПО
I6: СРРПБС
A7: Единица измерения : руб. | I7: ОКЕИ | J7: 383
A9: Наименование расхода | B9: Код | G9: Сумма , руб | H9: в том чисе по кварталам
B10: раздел | C10: подраздел | D10: целевая статья расхода | E10: вид расхода | F10: КОСГУ | H10: 1квартал | I10: 2квартал | J10: 3квартал | K10: 4квартал
A11: 1 | B11: 2 | C11: 3 | D11: 4 | E11: 5 | F11: 6 | G11: 7 | H11: 8 | I11: 9 | J11: 10 | K11: 11
A12: Расходы, всего | G12: =H12+I12+J12+K12 -> 53443604.74 | H12: =H13+H18+H22+H24+H27+H38+H41 -> 4475738 | I12: =I13+I18+I22+I24+I27+I38+I41 -> 12322761.14 | J12: =J13+J18+J22+J24+J27+J38+J41 -> 12613027.04 | K12: =K13+K18+K22+K24+K27+K38+K41 -> 24032078.56
A13: Обеспечение деятельности подведомственных учреждений | B13: 974 | C13: 0701 | D13: 4209900 | G13: =H13+I13+J13+K13 -> 3912293.3 | H13: =H14+H16 -> 279913 | I13: =I14+I16 -> 1169378 | J13: =J14+J16 -> 1912520.3 | K13: =K14+K16 -> 550482
A14: Расходы за счет доходов от платных услуг | B14: 974 | C14: 0701 | D14: 4209900 | E14: 900 | G14: 3906293.3 | H14: =H15 -> 279913 | I14: =I15 -> 1166378 | J14: =J15 -> 1909520.3 | K14: =K15 -> 550482
A15: Увеличение стоимости материальных запасов | B15: 974 | C15: 0701 | D15: 4209900 | E15: 900 | F15: 340 | G15: 3906293.3 | H15: 279913 | I15: 1166378 | J15: 1909520.3 | K15: 550482
A16: Расходы за счет прочих безвозмездных поступлений | B16: 974 | C16: 0701 | D16: 4209900 | E16: 910 | G16: =H16+I16+J16+K16 -> 6000 | H16: =H17 -> 0 | I16: =I17 -> 3000 | J16: =J17 -> 3000 | K16: =K17 -> 0
A17: Увеличение стоимости основных средств | B17: 974 | C17: 0701 | D17: 4209900 | E17: 910 | F17: 310 | G17: 6000 | I17: 3000 | J17: 3000
A18: Долгосрочная целевая программа "Укрепление материально-технической базы и проведение капитального ремонта зданий и сооружений учреждений, подведомственных Управлению образования города Пензы и здания Управления образования города Пензы на 2010-2012 г.г." | B18: 974 | C18: 0701 | D18: 7950600 | G18: 22762182.12 | H18: =H19 -> 2082467.12 | I18: =I19 -> 2676531 | J18: =J19 -> 3328648 | K18: =K19 -> 14674536
A19: Расходы на реализацию долгосрочных целевых программ | B19: 974 | C19: 0701 | D19: 7950600 | E19: 950 | G19: 22762182.12 | H19: =H21 -> 2082467.12 | I19: =I20+I21 -> 2676531 | J19: =J21 -> 3328648 | K19: =K21 -> 14674536
A20: Увеличение стоимости основных средств | B20: 974 | C20: 0701 | D20: 7950600 | E20: 950 | F20: 310 | G20: =H20+I20+J20+K20 -> 1151020 | I20: 1151020
A21: Прочие работы , услуги | B21: 974 | C21: 0701 | D21: 7950600 | E21: 950 | F21: 225 | G21: 21611162.12 | H21: 2082467.12 | I21: 1525511 | J21: 3328648 | K21: 14674536
A22: Расходы на реализацию долгосрочных целевых программ | B22: 974 | C22: 0701 | D22: 7950800 | E22: 950 | G22: 265442 | H22: =H23 -> 44276 | I22: =I23 -> 44276 | J22: =J23 -> 132614 | K22: =K23 -> 44276
A23: Прочие работы, услуги | B23: 974 | C23: 0701 | D23: 7950800 | E23: 950 | F23: 226 | G23: 265442 | H23: 44276 | I23: 44276 | J23: 132614 | K23: 44276
A24: Долгосрочная целевая программв "Многодетная семья,2009-2010годы" | B24: 974 | C24: 0701 | D24: 7953000 | G24: 38512 | H24: =H25 -> 4219 | I24: 4161 | J24: 18247 | K24: 11885
A25: Расходы на реализацию долгосрочных целевых программ | B25: 974 | C25: 0701 | D25: 7953000 | E25: 950 | G25: 38512 | H25: 4219 | I25: 4161 | J25: 18247 | K25: 11885
A26: Увеличение стоимости материальных запасов | B26: 974 | C26: 0701 | D26: 7953000 | E26: 950 | F26: 340 | G26: 38512 | H26: 4219 | I26: 4161 | J26: 18247 | K26: 11885
A27: Организация предоставления общедоступного бесплатного дошкольного образования и воспитания, содержание ребенка в дошкольном образовательном учреждении | B27: 974 | C27: 0701 | D27: 7969741 | G27: 24123936.8 | H27: =H28 -> 1980111.88 | I27: =I28 -> 7873165.22 | J27: =J28 -> 5980497.7 | K27: =K28 -> 8290162
A28: Оказание услуг подведомственными учреждениями | B28: 974 | C28: 0701 | D28: 7969741 | E28: 901 | G28: 24123936.8 | H28: =H29+H30+H31+H32+H33+H34+H35+H36+H37 -> 1980111.88 | I28: =I29+I30+I31+I32+I33+I34+I35+I36+I37 -> 7873165.22 | J28: =J29+J30+J31+J32+J33+J34+J35+J36+J37 -> 5980497.7 | K28: =K29+K30+K31+K32+K33+K34+K35+K36+K37 -> 8290162
A29: Заработная плата | B29: 974 | C29: 0701 | D29: 7969741 | E29: 901 | F29: 211 | G29: 13701965.16 | H29: 930865.73 | I29: 4631599.43 | J29: 3738161 | K29: 4401339
A30: Прочие выплаты | B30: 974 | C30: 0701 | D30: 7969741 | E30: 901 | F30: 212 | G30: =H30+I30+J30+K30 -> 101700 | H30: 6200 | I30: 31450 | J30: 27450 | K30: 36600
A31: Начисления на оплату труда | B31: 974 | C31: 0701 | D31: 7969741 | E31: 901 | F31: 213 | G31: 4907765.34 | H31: 304383.98 | I31: 1721726.36 | J31: 1109301 | K31: 1772354
A32: Услуги связи | B32: 974 | C32: 0701 | D32: 7969741 | E32: 901 | F32: 221 | G32: 33181.95 | H32: 2967 | I32: 11927.95 | J32: 9194 | K32: 9093
A33: Коммунальные услуги | B33: 974 | C33: 0701 | D33: 7969741 | E33: 901 | F33: 223 | G33: 3059396.5 | H33: 499131 | I33: 665918.5 | J33: 424518 | K33: 1469829
A34: Работы, услуги по содержанию имущества | B34: 974 | C34: 0701 | D34: 7969741 | E34: 901 | F34: 225 | G34: 170212.78 | H34: 25059.17 | I34: 60570.61 | J34: 54640 | K34: 29943
A35: Прочие работы, услуги, в том числе | B35: 974 | C35: 0701 | D35: 7969741 | E35: 901 | F35: 226 | G35: 239467.27 | H35: 38565 | I35: 122646.57 | J35: 65472.7 | K35: 12783
A36: Прочие расходы | B36: 974 | C36: 0701 | D36: 7969741 | E36: 901 | F36: 290 | G36: 1138449 | H36: 112859 | I36: 341863 | J36: 341863 | K36: 341864
A37: Увеличение стоимости материальных запасов | B37: 974 | C37: 0701 | D37: 7969741 | E37: 901 | F37: 340 | G37: 771798.8 | H37: 60081 | I37: 285462.8 | J37: 209898 | K37: 216357
A38: Ведомственная целевая программа развития "Дошкольное детство(2011-2013гг.)" | B38: 974 | C38: 0701 | D38: 7976302 | G38: 1542996.52 | H38: =H39 -> 84751 | I38: 508686.92 | J38: 488821.04 | K38: 460737.56
A39: Расходы на реализацию ведомственных целевых программ | B39: 974 | C39: 0701 | D39: 7976302 | E39: 951 | G39: 1542996.52 | H39: 84751 | I39: 508686.92 | J39: 488821.04 | K39: 460737.56
A40: Прочие работы, услуги | B40: 974 | C40: 0701 | D40: 7976302 | E40: 951 | F40: 340 | G40: 1542996.52 | H40: 84751 | I40: 508686.92 | J40: 488821.04 | K40: 460737.56
A41: Долгосрочная целевая программа города Пензы "Здоровый ребенок" на 2011-2013 годы | B41: 974 | C41: 0701 | D41: 7950101 | G41: 798242 | H41: =H42 -> 0 | I41: =I42 -> 46563 | J41: 751679 | K41: 0
A42: Расходы на реализацию долгосрочных целевых программ | B42: 974 | C42: 0701 | D42: 7950101 | E42: 950 | G42: 798242 | H42: 0 | I42: =I43+I44 -> 46563 | J42: =J43+J44 -> 751679 | K42: 0
A43: Увеличение стоимости основных средств | B43: 974 | C43: 0701 | D43: 6000200 | E43: 950 | F43: 310 | G43: 58242 | H43: 0 | I43: 46563 | J43: 11679 | K43: 0
A44: Прочие работы, услуги | B44: 974 | C44: 0701 | D44: 6000200 | E44: 950 | F44: 226 | G44: 740000 | H44: =H45 -> 0 | I44: =I45 -> 0 | J44: 740000 | K44: =K45 -> 0
A46: Заведующая | D46: С.В.Петрунина
A47: Гл.бухгалтер | D47: О.А.Зайцева

Sheet смета21.04.11
J1: Ю.А.Голодяев
A2: БЮДЖЕТНАЯ СМЕТА
E3: НА 21 апреля 2011 ГОД
A4: Получатель средств бюджета | J4: коды
A5: МДОУ № 137 | I5: ОКПО
I6: СРРПБС
A7: Единица измерения : руб. | I7: ОКЕИ | J7: 383
A9: Наименование расхода | B9: Код | G9: Сумма , руб | H9: в том чисе по кварталам
B10: раздел | C10: подраздел | D10: целевая статья расхода | E10: вид расхода | F10: КОСГУ | H10: 1квартал | I10: 2квартал | J10: 3квартал | K10: 4квартал
A11: 1 | B11: 2 | C11: 3 | D11: 4 | E11: 5 | F11: 6 | G11: 7 | H11: 8 | I11: 9 | J11: 10 | K11: 11
A12: Расходы, всего | G12: =H12+I12+J12+K12 -> 52309007.62 | H12: =H13+H24+H27+H38+H18+H21+H41 -> 4478138 | I12: =I13+I24+I27+I38+I18+I21+I41 -> 11167153.62 | J12: =J13+J18+J21+J24+J27+J38+J41 -> 12628106 | K12: =K13+K24+K27+K38+K18+K21+K41 -> 24035610
A13: Обеспечение деятельности подведомственных учреждений | B13: 974 | C13: 0701 | D13: 4209900 | G13: =H13+I13+J13+K13 -> 3912293.3 | H13: =H14+H16 -> 279913 | I13: =I14+I16 -> 1169378 | J13: =J14+J16 -> 1912520.3 | K13: =K14+K16 -> 550482
A14: Расходы за счет доходов от платных услуг | B14: 974 | C14: 0701 | D14: 4209900 | E14: 900 | G14: 3906293.3 | H14: =H15 -> 279913 | I14: =I15 -> 1166378 | J14: =J15 -> 1909520.3 | K14: =K15 -> 550482
A15: Увеличение стоимости материальных запасов | B15: 974 | C15: 0701 | D15: 4209900 | E15: 900 | F15: 340 | G15: 3906293.3 | H15: 279913 | I15: 1166378 | J15: 1909520.3 | K15: 550482
A16: Расходы за счет прочих безвозмездных поступлений | B16: 974 | C16: 0701 | D16: 4209900 | E16: 910 | G16: =H16+I16+J16+K16 -> 6000 | H16: =H17 -> 0 | I16: =I17 -> 3000 | J16: =J17 -> 3000 | K16: =K17 -> 0
A17: Увеличение стоимости основных средств | B17: 974 | C17: 0701 | D17: 4209900 | E17: 910 | F17: 310 | G17: 6000 | I17: 3000 | J17: 3000
A18: Долгосрочная целевая программа "Укрепление материально-технической базы и проведение капитального ремонта зданий и сооружений учреждений, подведомственных Управлению образования города Пензы и здания Управления образования города Пензы на 2010-2012 г.г." | B18: 974 | C18: 0701 | D18: 7950600 | G18: 21611162.12 | H18: =H19 -> 2082467.12 | I18: 1525511 | J18: 3328648 | K18: 14674536
A19: Расходы на реализацию долгосрочных целевых программ | B19: 974 | C19: 0701 | D19: 7950600 | E19: 950 | G19: 21611162.12 | H19: 2082467.12 | I19: 1525511 | J19: 3328648 | K19: 14674536
A20: Прочие работы , услуги | B20: 974 | C20: 0701 | D20: 7950600 | E20: 950 | F20: 225 | G20: 21611162.12 | H20: 2082467.12 | I20: 1525511 | J20: 3328648 | K20: 14674536
A21: Долгосрочная целевая программа Энергосбережения и повышения энергоэффективности в городе Пензе на период 2010-2020 годов | B21: 974 | C21: 0701 | D21: 7950800 | G21: 265442 | H21: 44276 | I21: 44276 | J21: 132614 | K21: 44276
A22: Расходы на реализацию долгосрочных целевых программ | B22: 974 | C22: 0701 | D22: 7950800 | E22: 950 | G22: 265442 | H22: 44276 | I22: 44276 | J22: 132614 | K22: 44276
A23: Прочие работы, услуги | B23: 974 | C23: 0701 | D23: 7950800 | E23: 950 | F23: 226 | G23: 265442 | H23: 44276 | I23: 44276 | J23: 132614 | K23: 44276
A24: Долгосрочная целевая программв "Многодетная семья,2009-2010годы" | B24: 974 | C24: 0701 | D24: 7953000 | G24: 51368 | H24: =H25 -> 4219 | I24: 8303 | J24: 21867 | K24: 16979
A25: Расходы на реализацию долгосрочных целевых программ | B25: 974 | C25: 0701 | D25: 7953000 | E25: 950 | G25: 51368 | H25: 4219 | I25: 8303 | J25: 21867 | K25: 16979
A26: Увеличение стоимости материальных запасов | B26: 974 | C26: 0701 | D26: 7953000 | E26: 950 | F26: 340 | G26: 51368 | H26: 4219 | I26: 8303 | J26: 21867 | K26: 16979
A27: Организация предоставления общедоступного бесплатного дошкольного образования и воспитания, содержание ребенка в дошкольном образовательном учреждении | B27: 974 | C27: 0701 | D27: 7969741 | G27: 24186936.8 | H27: =H28 -> 1982511.88 | I27: =I28 -> 7870765.22 | J27: =J28 -> 6007297.7 | K27: =K28 -> 8326362
A28: Оказание услуг подведомственными учреждениями | B28: 974 | C28: 0701 | D28: 7969741 | E28: 901 | G28: 24186936.8 | H28: =H29+H30+H31+H32+H33+H34+H35+H36+H37 -> 1982511.88 | I28: =I29+I30+I31+I32+I33+I34+I35+I36+I37 -> 7870765.22 | J28: =J29+J30+J31+J32+J33+J34+J35+J36+J37 -> 6007297.7 | K28: =K29+K30+K31+K32+K33+K34+K35+K36+K37 -> 8326362
A29: Заработная плата | B29: 974 | C29: 0701 | D29: 7969741 | E29: 901 | F29: 211 | G29: 13752465.16 | H29: 930865.73 | I29: 4631599.43 | J29: 3763161 | K29: 4426839
A30: Прочие выплаты | B30: 974 | C30: 0701 | D30: 7969741 | E30: 901 | F30: 212 | G30: 101700 | H30: 8600 | I30: 29050 | J30: 27450 | K30: 36600
A31: Начисления на оплату труда | B31: 974 | C31: 0701 | D31: 7969741 | E31: 901 | F31: 213 | G31: 4916565.34 | H31: 304383.98 | I31: 1721726.36 | J31: 1109301 | K31: 1781154
A32: Услуги связи | B32: 974 | C32: 0701 | D32: 7969741 | E32: 901 | F32: 221 | G32: 36881.95 | H32: 2967 | I32: 11927.95 | J32: 10994 | K32: 10993
A33: Коммунальные услуги | B33: 974 | C33: 0701 | D33: 7969741 | E33: 901 | F33: 223 | G33: 3059396.5 | H33: 499131 | I33: 665918.5 | J33: 424518 | K33: 1469829
A34: Работы, услуги по содержанию имущества | B34: 974 | C34: 0701 | D34: 7969741 | E34: 901 | F34: 225 | G34: 170212.78 | H34: 25059.17 | I34: 60570.61 | J34: 54640 | K34: 29943
A35: Прочие работы, услуги, в том числе | B35: 974 | C35: 0701 | D35: 7969741 | E35: 901 | F35: 226 | G35: 239467.27 | H35: 38565 | I35: 122646.57 | J35: 65472.7 | K35: 12783
A36: Прочие расходы | B36: 974 | C36: 0701 | D36: 7969741 | E36: 901 | F36: 290 | G36: 1138449 | H36: 112859 | I36: 341863 | J36: 341863 | K36: 341864
A37: Увеличение стоимости материальных запасов | B37: 974 | C37: 0701 | D37: 7969741 | E37: 901 | F37: 340 | G37: 771798.8 | H37: 60081 | I37: 285462.8 | J37: 209898 | K37: 216357
A38: Ведомственная целевая программа развития "Дошкольное детство(2011-2013гг.)" | B38: 974 | C38: 0701 | D38: 7976302 | G38: 1483563.4 | H38: =H39 -> 84751 | I38: 502357.4 | J38: 473480 | K38: 422975
A39: Расходы на реализацию ведомственных целевых программ | B39: 974 | C39: 0701 | D39: 7976302 | E39: 951 | G39: 1483563.4 | H39: 84751 | I39: 502357.4 | J39: 473480 | K39: 422975
A40: Прочие работы, услуги | B40: 974 | C40: 0701 | D40: 7976302 | E40: 951 | F40: 340 | G40: 1483563.4 | H40: 84751 | I40: 502357.4 | J40: 473480 | K40: 422975
A41: Долгосрочная целевая программа города Пензы "Здоровый ребенок" на 2011-2013 годы | B41: 974 | C41: 0701 | D41: 7950101 | G41: 798242 | H41: =H42 -> 0 | I41: =I42 -> 46563 | J41: 751679 | K41: 0
A42: Расходы на реализацию долгосрочных целевых программ | B42: 974 | C42: 0701 | D42: 7950101 | E42: 950 | G42: 798242 | H42: 0 | I42: =I43+I44 -> 46563 | J42: =J43+J44 -> 751679 | K42: 0
A43: Увеличение стоимости основных средств | B43: 974 | C43: 0701 | D43: 6000200 | E43: 950 | F43: 310 | G43: 58242 | H43: 0 | I43: 46563 | J43: 11679 | K43: 0
A44: Прочие работы, услуги | B44: 974 | C44: 0701 | D44: 6000200 | E44: 950 | F44: 226 | G44: 740000 | H44: =H45 -> 0 | I44: =I45 -> 0 | J44: 740000 | K44: =K45 -> 0
A46: Заведующая | D46: С.В.Петрунина
A47: Гл.бухгалтер | D47: О.А.Зайцева
A48: дата

Sheet смета 18.05.11
J1: Ю.А.Голодяев
A2: БЮДЖЕТНАЯ СМЕТА
E3: НА 18 мая 2011 ГОД
A4: Получатель средств бюджета | J4: коды
A5: МДОУ № 137 | I5: ОКПО
I6: СРРПБС
A7: Единица измерения : руб. | I7: ОКЕИ | J7: 383
A9: Наименование расхода | B9: Код | G9: Сумма , руб | H9: в том чисе по кварталам
B10: раздел | C10: подраздел | D10: целевая статья расхода | E10: вид расхода | F10: КОСГУ | H10: 1квартал | I10: 2квартал | J10: 3квартал | K10: 4квартал
A11: 1 | B11: 2 | C11: 3 | D11: 4 | E11: 5 | F11: 6 | G11: 7 | H11: 8 | I11: 9 | J11: 10 | K11: 11
A12: Расходы, всего | G12: =H12+I12+J12+K12 -> 53443604.74 | H12: =H13+H18+H22+H25+H28+H39+H42 -> 4478138 | I12: =I13+I18+I22+I25+I28+I39+I42 -> 12320361.14 | J12: =J13+J18+J22+J25+J28+J39+J42 -> 12613027.04 | K12: =K13+K18+K22+K25+K28+K39+K42 -> 24032078.56
A13: Обеспечение деятельности подведомственных учреждений | B13: 974 | C13: 0701 | D13: 4209900 | G13: =H13+I13+J13+K13 -> 3912293.3 | H13: =H14+H16 -> 279913 | I13: =I14+I16 -> 1169378 | J13: =J14+J16 -> 1912520.3 | K13: =K14+K16 -> 550482
A14: Расходы за счет доходов от платных услуг | B14: 974 | C14: 0701 | D14: 4209900 | E14: 900 | G14: 3906293.3 | H14: =H15 -> 279913 | I14: =I15 -> 1166378 | J14: =J15 -> 1909520.3 | K14: =K15 -> 550482
A15: Увеличение стоимости материальных запасов | B15: 974 | C15: 0701 | D15: 4209900 | E15: 900 | F15: 340 | G15: 3906293.3 | H15: 279913 | I15: 1166378 | J15: 1909520.3 | K15: 550482
A16: Расходы за счет прочих безвозмездных поступлений | B16: 974 | C16: 0701 | D16: 4209900 | E16: 910 | G16: =H16+I16+J16+K16 -> 6000 | H16: =H17 -> 0 | I16: =I17 -> 3000 | J16: =J17 -> 3000 | K16: =K17 -> 0
A17: Увеличение стоимости основных средств | B17: 974 | C17: 0701 | D17: 4209900 | E17: 910 | F17: 310 | G17: 6000 | I17: 3000 | J17: 3000
A18: Долгосрочная целевая программа "Укрепление материально-технической базы и проведение капитального ремонта зданий и сооружений учреждений, подведомственных Управлению образования города Пензы и здания Управления образования города Пензы на 2010-2012 г.г." | B18: 974 | C18: 0701 | D18: 7950600 | G18: 22762182.12 | H18: =H19 -> 2082467.12 | I18: =I19 -> 2676531 | J18: =J19 -> 3328648 | K18: =K19 -> 14674536
A19: Расходы на реализацию долгосрочных целевых программ | B19: 974 | C19: 0701 | D19: 7950600 | E19: 950 | G19: 22762182.12 | H19: =H21 -> 2082467.12 | I19: =I20+I21 -> 2676531 | J19: =J21 -> 3328648 | K19: =K21 -> 14674536
A20: Увеличение стоимости основных средств | B20: 974 | C20: 0701 | D20: 7950600 | E20: 950 | F20: 310 | G20: =H20+I20+J20+K20 -> 1151020 | I20: 1151020
A21: Прочие работы , услуги | B21: 974 | C21: 0701 | D21: 7950600 | E21: 950 | F21: 225 | G21: 21611162.12 | H21: 2082467.12 | I21: 1525511 | J21: 3328648 | K21: 14674536
A22: Расходы на реализацию долгосрочных целевых программ | B22: 974 | C22: 0701 | D22: 7950800 | E22: 950 | G22: 265442 | H22: =H24 -> 44276 | I22: =I23+I24 -> 44276 | J22: =J23+J24 -> 132614 | K22: =K23+K24 -> 44276
A23: Работы, услуги по содержанию имущества | B23: 974 | C23: 0701 | D23: 7950800 | E23: 950 | F23: 225 | G23: =H23+I23+J23+K23 -> 124369.36 | I23: 28894.68 | J23: 81027.34 | K23: 14447.34
A24: Прочие работы, услуги | B24: 974 | C24: 0701 | D24: 7950800 | E24: 950 | F24: 226 | G24: 141072.64 | H24: 44276 | I24: 15381.32 | J24: 51586.66 | K24: 29828.66
A25: Долгосрочная целевая программв "Многодетная семья,2009-2010годы" | B25: 974 | C25: 0701 | D25: 7953000 | G25: 38512 | H25: =H26 -> 4219 | I25: 4161 | J25: 18247 | K25: 11885
A26: Расходы на реализацию долгосрочных целевых программ | B26: 974 | C26: 0701 | D26: 7953000 | E26: 950 | G26: 38512 | H26: 4219 | I26: 4161 | J26: 18247 | K26: 11885
A27: Увеличение стоимости материальных запасов | B27: 974 | C27: 0701 | D27: 7953000 | E27: 950 | F27: 340 | G27: 38512 | H27: 4219 | I27: 4161 | J27: 18247 | K27: 11885
A28: Организация предоставления общедоступного бесплатного дошкольного образования и воспитания, содержание ребенка в дошкольном образовательном учреждении | B28: 974 | C28: 0701 | D28: 7969741 | G28: 24123936.8 | H28: =H29 -> 1982511.88 | I28: =I29 -> 7870765.22 | J28: =J29 -> 5980497.7 | K28: =K29 -> 8290162
A29: Оказание услуг подведомственными учреждениями | B29: 974 | C29: 0701 | D29: 7969741 | E29: 901 | G29: 24123936.8 | H29: =H30+H31+H32+H33+H34+H35+H36+H37+H38 -> 1982511.88 | I29: =I30+I31+I32+I33+I34+I35+I36+I37+I38 -> 7870765.22 | J29: =J30+J31+J32+J33+J34+J35+J36+J37+J38 -> 5980497.7 | K29: =K30+K31+K32+K33+K34+K35+K36+K37+K38 -> 8290162
A30: Заработная плата | B30: 974 | C30: 0701 | D30: 7969741 | E30: 901 | F30: 211 | G30: 13701965.16 | H30: 930865.73 | I30: 4631599.43 | J30: 3738161 | K30: 4401339
A31: Прочие выплаты | B31: 974 | C31: 0701 | D31: 7969741 | E31: 901 | F31: 212 | G31: 92900 | H31: 8600 | I31: 29050 | J31: 27450 | K31: 27800
A32: Начисления на оплату труда | B32: 974 | C32: 0701 | D32: 7969741 | E32: 901 | F32: 213 | G32: 4769543.9 | H32: 304383.98 | I32: 1574704.92 | J32: 1109301 | K32: 1781154
A33: Услуги связи | B33: 974 | C33: 0701 | D33: 7969741 | E33: 901 | F33: 221 | G33: 33181.95 | H33: 2967 | I33: 11927.95 | J33: 9194 | K33: 9093
A34: Коммунальные услуги | B34: 974 | C34: 0701 | D34: 7969741 | E34: 901 | F34: 223 | G34: 3059396.5 | H34: 499131 | I34: 665918.5 | J34: 424518 | K34: 1469829
A35: Работы, услуги по содержанию имущества | B35: 974 | C35: 0701 | D35: 7969741 | E35: 901 | F35: 225 | G35: 170212.78 | H35: 25059.17 | I35: 60570.61 | J35: 54640 | K35: 29943
A36: Прочие работы, услуги, в том числе | B36: 974 | C36: 0701 | D36: 7969741 | E36: 901 | F36: 226 | G36: 239467.27 | H36: 38565 | I36: 122646.57 | J36: 65472.7 | K36: 12783
A37: Прочие расходы | B37: 974 | C37: 0701 | D37: 7969741 | E37: 901 | F37: 290 | G37: 1138449 | H37: 112859 | I37: 341863 | J37: 341863 | K37: 341864
A38: Увеличение стоимости материальных запасов | B38: 974 | C38: 0701 | D38: 7969741 | E38: 901 | F38: 340 | G38: 918820.24 | H38: 60081 | I38: 432484.24 | J38: 209898 | K38: 216357
A39: Ведомственная целевая программа развития "Дошкольное детство(2011-2013гг.)" | B39: 974 | C39: 0701 | D39: 7976302 | G39: 1542996.52 | H39: =H40 -> 84751 | I39: 508686.92 | J39: 488821.04 | K39: 460737.56
A40: Расходы на реализацию ведомственных целевых программ | B40: 974 | C40: 0701 | D40: 7976302 | E40: 951 | G40: 1542996.52 | H40: 84751 | I40: 508686.92 | J40: 488821.04 | K40: 460737.56
A41: Прочие работы, услуги | B41: 974 | C41: 0701 | D41: 7976302 | E41: 951 | F41: 340 | G41: 1542996.52 | H41: 84751 | I41: 508686.92 | J41: 488821.04 | K41: 460737.56
A42: Долгосрочная целевая программа города Пензы "Здоровый ребенок" на 2011-2013 годы | B42: 974 | C42: 0701 | D42: 7950101 | G42: 798242 | H42: =H43 -> 0 | I42: =I43 -> 46563 | J42: 751679 | K42: 0
A43: Расходы на реализацию долгосрочных целевых программ | B43: 974 | C43: 0701 | D43: 7950101 | E43: 950 | G43: 798242 | H43: 0 | I43: =I44+I45 -> 46563 | J43: =J44+J45 -> 751679 | K43: 0
A44: Увеличение стоимости основных средств | B44: 974 | C44: 0701 | D44: 6000200 | E44: 950 | F44: 310 | G44: 58242 | H44: 0 | I44: 46563 | J44: 11679 | K44: 0
A45: Прочие работы, услуги | B45: 974 | C45: 0701 | D45: 6000200 | E45: 950 | F45: 226 | G45: 740000 | H45: =H46 -> 0 | I45: =I46 -> 0 | J45: 740000 | K45: =K46 -> 0
A47: Заведующая | D47: С.В.Петрунина
A48: Гл.бухгалтер | D48: О.А.Зайцева

Sheet смета 03.06.11
J1: Ю.А.Голодяев
A2: БЮДЖЕТНАЯ СМЕТА
E3: НА 03 июня 2011 ГОД
A4: Получатель средств бюджета | J4: коды
A5: МДОУ № 137 | I5: ОКПО
I6: СРРПБС
A7: Единица измерения : руб. | I7: ОКЕИ | J7: 383
A9: Наименование расхода | B9: Код | G9: Сумма , руб | H9: в том чисе по кварталам
B10: раздел | C10: подраздел | D10: целевая статья расхода | E10: вид расхода | F10: КОСГУ | H10: 1квартал | I10: 2квартал | J10: 3квартал | K10: 4квартал
A11: 1 | B11: 2 | C11: 3 | D11: 4 | E11: 5 | F11: 6 | G11: 7 | H11: 8 | I11: 9 | J11: 10 | K11: 11
A12: Расходы, всего | G12: =H12+I12+J12+K12 -> 51198119.17 | H12: =H13+H18+H22+H25+H28+H39+H42 -> 4478138 | I12: =I13+I18+I22+I25+I28+I39+I42 -> 12248437.84 | J12: =J13+J18+J22+J25+J28+J39+J42 -> 10439464.77 | K12: =K13+K18+K22+K25+K28+K39+K42 -> 24032078.56
A13: Обеспечение деятельности подведомственных учреждений | B13: 974 | C13: 0701 | D13: 4209900 | G13: =H13+I13+J13+K13 -> 3913723.03 | H13: =H14+H16 -> 279913 | I13: =I14+I16 -> 1169378 | J13: =J14+J16 -> 1913950.03 | K13: =K14+K16 -> 550482
A14: Расходы за счет доходов от платных услуг | B14: 974 | C14: 0701 | D14: 4209900 | E14: 900 | G14: 3907723.03 | H14: =H15 -> 279913 | I14: =I15 -> 1166378 | J14: =J15 -> 1910950.03 | K14: =K15 -> 550482
A15: Увеличение стоимости материальных запасов | B15: 974 | C15: 0701 | D15: 4209900 | E15: 900 | F15: 340 | G15: 3907723.03 | H15: 279913 | I15: 1166378 | J15: 1910950.03 | K15: 550482
A16: Расходы за счет прочих безвозмездных поступлений | B16: 974 | C16: 0701 | D16: 4209900 | E16: 910 | G16: =H16+I16+J16+K16 -> 6000 | H16: =H17 -> 0 | I16: =I17 -> 3000 | J16: =J17 -> 3000 | K16: =K17 -> 0
A17: Увеличение стоимости основных средств | B17: 974 | C17: 0701 | D17: 4209900 | E17: 910 | F17: 310 | G17: 6000 | I17: 3000 | J17: 3000
A18: Долгосрочная целевая программа "Укрепление материально-технической базы и проведение капитального ремонта зданий и сооружений учреждений, подведомственных Управлению образования города Пензы и здания Управления образования города Пензы на 2010-2012 г.г." | B18: 974 | C18: 0701 | D18: 7950600 | G18: 20587190.12 | H18: =H19 -> 2082467.12 | I18: =I19 -> 2676531 | J18: =J19 -> 1153656 | K18: =K19 -> 14674536
A19: Расходы на реализацию долгосрочных целевых программ | B19: 974 | C19: 0701 | D19: 7950600 | E19: 950 | G19: 20587190.12 | H19: =H21 -> 2082467.12 | I19: =I20+I21 -> 2676531 | J19: =J21 -> 1153656 | K19: =K21 -> 14674536
A20: Увеличение стоимости основных средств | B20: 974 | C20: 0701 | D20: 7950600 | E20: 950 | F20: 310 | G20: =H20+I20+J20+K20 -> 1151020 | I20: 1151020
A21: Прочие работы , услуги | B21: 974 | C21: 0701 | D21: 7950600 | E21: 950 | F21: 225 | G21: 19436170.12 | H21: 2082467.12 | I21: 1525511 | J21: 1153656 | K21: 14674536
A22: Расходы на реализацию долгосрочных целевых программ | B22: 974 | C22: 0701 | D22: 7950800 | E22: 950 | G22: 265442 | H22: =H24 -> 44276 | I22: =I23+I24 -> 44276 | J22: =J23+J24 -> 132614 | K22: =K23+K24 -> 44276
A23: Работы, услуги по содержанию имущества | B23: 974 | C23: 0701 | D23: 7950800 | E23: 950 | F23: 225 | G23: =H23+I23+J23+K23 -> 124369.36 | I23: 28894.68 | J23: 81027.34 | K23: 14447.34
A24: Прочие работы, услуги | B24: 974 | C24: 0701 | D24: 7950800 | E24: 950 | F24: 226 | G24: 141072.64 | H24: 44276 | I24: 15381.32 | J24: 51586.66 | K24: 29828.66
A25: Долгосрочная целевая программв "Многодетная семья,2009-2010годы" | B25: 974 | C25: 0701 | D25: 7953000 | G25: 38512 | H25: =H26 -> 4219 | I25: 4161 | J25: 18247 | K25: 11885
A26: Расходы на реализацию долгосрочных целевых программ | B26: 974 | C26: 0701 | D26: 7953000 | E26: 950 | G26: 38512 | H26: 4219 | I26: 4161 | J26: 18247 | K26: 11885
A27: Увеличение стоимости материальных запасов | B27: 974 | C27: 0701 | D27: 7953000 | E27: 950 | F27: 340 | G27: 38512 | H27: 4219 | I27: 4161 | J27: 18247 | K27: 11885
A28: Организация предоставления общедоступного бесплатного дошкольного образования и воспитания, содержание ребенка в дошкольном образовательном учреждении | B28: 974 | C28: 0701 | D28: 7969741 | G28: 24052013.5 | H28: =H29 -> 1982511.88 | I28: =I29 -> 7798841.92 | J28: =J29 -> 5980497.7 | K28: =K29 -> 8290162
A29: Оказание услуг подведомственными учреждениями | B29: 974 | C29: 0701 | D29: 7969741 | E29: 901 | G29: 24052013.5 | H29: =H30+H31+H32+H33+H34+H35+H36+H37+H38 -> 1982511.88 | I29: =I30+I31+I32+I33+I34+I35+I36+I37+I38 -> 7798841.92 | J29: =J30+J31+J32+J33+J34+J35+J36+J37+J38 -> 5980497.7 | K29: =K30+K31+K32+K33+K34+K35+K36+K37+K38 -> 8290162
A30: Заработная плата | B30: 974 | C30: 0701 | D30: 7969741 | E30: 901 | F30: 211 | G30: 13647407.16 | H30: 930865.73 | I30: 4577041.43 | J30: 3738161 | K30: 4401339
A31: Прочие выплаты | B31: 974 | C31: 0701 | D31: 7969741 | E31: 901 | F31: 212 | G31: 92900 | H31: 8600 | I31: 29050 | J31: 27450 | K31: 27800
A32: Начисления на оплату труда | B32: 974 | C32: 0701 | D32: 7969741 | E32: 901 | F32: 213 | G32: 4750884.9 | H32: 304383.98 | I32: 1556045.92 | J32: 1109301 | K32: 1781154
A33: Услуги связи | B33: 974 | C33: 0701 | D33: 7969741 | E33: 901 | F33: 221 | G33: 33181.95 | H33: 2967 | I33: 11927.95 | J33: 9194 | K33: 9093
A34: Коммунальные услуги | B34: 974 | C34: 0701 | D34: 7969741 | E34: 901 | F34: 223 | G34: 3059396.5 | H34: 499131 | I34: 665918.5 | J34: 424518 | K34: 1469829
A35: Работы, услуги по содержанию имущества | B35: 974 | C35: 0701 | D35: 7969741 | E35: 901 | F35: 225 | G35: 170212.78 | H35: 25059.17 | I35: 60570.61 | J35: 54640 | K35: 29943
A36: Прочие работы, услуги, в том числе | B36: 974 | C36: 0701 | D36: 7969741 | E36: 901 | F36: 226 | G36: 242067.27 | H36: 38565 | I36: 125246.57 | J36: 65472.7 | K36: 12783
A37: Прочие расходы | B37: 974 | C37: 0701 | D37: 7969741 | E37: 901 | F37: 290 | G37: 1137142.7 | H37: 112859 | I37: 340556.7 | J37: 341863 | K37: 341864
A38: Увеличение стоимости материальных запасов | B38: 974 | C38: 0701 | D38: 7969741 | E38: 901 | F38: 340 | G38: 918820.24 | H38: 60081 | I38: 432484.24 | J38: 209898 | K38: 216357
A39: Ведомственная целевая программа развития "Дошкольное детство(2011-2013гг.)" | B39: 974 | C39: 0701 | D39: 7976302 | G39: 1542996.52 | H39: =H40 -> 84751 | I39: 508686.92 | J39: 488821.04 | K39: 460737.56
A40: Расходы на реализацию ведомственных целевых программ | B40: 974 | C40: 0701 | D40: 7976302 | E40: 951 | G40: 1542996.52 | H40: 84751 | I40: 508686.92 | J40: 488821.04 | K40: 460737.56
A41: Прочие работы, услуги | B41: 974 | C41: 0701 | D41: 7976302 | E41: 951 | F41: 340 | G41: 1542996.52 | H41: 84751 | I41: 508686.92 | J41: 488821.04 | K41: 460737.56
A42: Долгосрочная целевая программа города Пензы "Здоровый ребенок" на 2011-2013 годы | B42: 974 | C42: 0701 | D42: 7950101 | G42: 798242 | H42: =H43 -> 0 | I42: =I43 -> 46563 | J42: 751679 | K42: 0
A43: Расходы на реализацию долгосрочных целевых программ | B43: 974 | C43: 0701 | D43: 7950101 | E43: 950 | G43: 798242 | H43: 0 | I43: =I44+I45 -> 46563 | J43: =J44+J45 -> 751679 | K43: 0
A44: Увеличение стоимости основных средств | B44: 974 | C44: 0701 | D44: 6000200 | E44: 950 | F44: 310 | G44: 58242 | H44: 0 | I44: 46563 | J44: 11679 | K44: 0
A45: Прочие работы, услуги | B45: 974 | C45: 0701 | D45: 6000200 | E45: 950 | F45: 226 | G45: 740000 | H45: =H46 -> 0 | I45: =I46 -> 0 | J45: 740000 | K45: =K46 -> 0
A47: Заведующая | D47: С.В.Петрунина
A48: Гл.бухгалтер | D48: О.А.Зайцева

Sheet смета30.06.11
J1: Ю.А.Голодяев
A2: БЮДЖЕТНАЯ СМЕТА
E3: НА 30 июня 2011 ГОД
A4: Получатель средств бюджета | J4: коды
A5: МДОУ № 137 | I5: ОКПО
I6: СРРПБС
A7: Единица измерения : руб. | I7: ОКЕИ | J7: 383
A9: Наименование расхода | B9: Код | G9: Сумма , руб | H9: в том чисе по кварталам
B10: раздел | C10: подраздел | D10: целевая статья расхода | E10: вид расхода | F10: КОСГУ | H10: 1квартал | I10: 2квартал | J10: 3квартал | K10: 4квартал
A11: 1 | B11: 2 | C11: 3 | D11: 4 | E11: 5 | F11: 6 | G11: 7 | H11: 8 | I11: 9 | J11: 10 | K11: 11
A12: Расходы, всего | G12: =H12+I12+J12+K12 -> 63198119.17 | H12: =H13+H18+H22+H25+H28+H39+H42 -> 4478138 | I12: =I13+I18+I22+I25+I28+I39+I42 -> 12248437.84 | J12: =J13+J18+J22+J25+J28+J39+J42 -> 10439464.77 | K12: =K13+K18+K22+K25+K28+K39+K42 -> 36032078.56
A13: Обеспечение деятельности подведомственных учреждений | B13: 974 | C13: 0701 | D13: 4209900 | G13: =H13+I13+J13+K13 -> 3913723.03 | H13: =H14+H16 -> 279913 | I13: =I14+I16 -> 1169378 | J13: =J14+J16 -> 1913950.03 | K13: =K14+K16 -> 550482
A14: Расходы за счет доходов от платных услуг | B14: 974 | C14: 0701 | D14: 4209900 | E14: 900 | G14: 3907723.03 | H14: =H15 -> 279913 | I14: =I15 -> 1166378 | J14: =J15 -> 1910950.03 | K14: =K15 -> 550482
A15: Увеличение стоимости материальных запасов | B15: 974 | C15: 0701 | D15: 4209900 | E15: 900 | F15: 340 | G15: 3907723.03 | H15: 279913 | I15: 1166378 | J15: 1910950.03 | K15: 550482
A16: Расходы за счет прочих безвозмездных поступлений | B16: 974 | C16: 0701 | D16: 4209900 | E16: 910 | G16: =H16+I16+J16+K16 -> 6000 | H16: =H17 -> 0 | I16: =I17 -> 3000 | J16: =J17 -> 3000 | K16: =K17 -> 0
A17: Увеличение стоимости основных средств | B17: 974 | C17: 0701 | D17: 4209900 | E17: 910 | F17: 310 | G17: 6000 | I17: 3000 | J17: 3000
A18: Долгосрочная целевая программа "Укрепление материально-технической базы и проведение капитального ремонта зданий и сооружений учреждений, подведомственных Управлению образования города Пензы и здания Управления образования города Пензы на 2010-2012 г.г." | B18: 974 | C18: 0701 | D18: 7950600 | G18: 32587190.12 | H18: =H19 -> 2082467.12 | I18: =I19 -> 2676531 | J18: =J19 -> 1153656 | K18: =K19 -> 26674536
A19: Расходы на реализацию долгосрочных целевых программ | B19: 974 | C19: 0701 | D19: 7950600 | E19: 950 | G19: 32587190.12 | H19: =H21 -> 2082467.12 | I19: =I20+I21 -> 2676531 | J19: =J21 -> 1153656 | K19: =K21 -> 26674536
A20: Увеличение стоимости основных средств | B20: 974 | C20: 0701 | D20: 7950600 | E20: 950 | F20: 310 | G20: =H20+I20+J20+K20 -> 1151020 | I20: 1151020
A21: Прочие работы , услуги | B21: 974 | C21: 0701 | D21: 7950600 | E21: 950 | F21: 225 | G21: 31436170.12 | H21: 2082467.12 | I21: 1525511 | J21: 1153656 | K21: 26674536
A22: Расходы на реализацию долгосрочных целевых программ | B22: 974 | C22: 0701 | D22: 7950800 | E22: 950 | G22: 265442 | H22: =H24 -> 44276 | I22: =I23+I24 -> 44276 | J22: =J23+J24 -> 132614 | K22: =K23+K24 -> 44276
A23: Работы, услуги по содержанию имущества | B23: 974 | C23: 0701 | D23: 7950800 | E23: 950 | F23: 225 | G23: =H23+I23+J23+K23 -> 124369.36 | I23: 28894.68 | J23: 81027.34 | K23: 14447.34
A24: Прочие работы, услуги | B24: 974 | C24: 0701 | D24: 7950800 | E24: 950 | F24: 226 | G24: 141072.64 | H24: 44276 | I24: 15381.32 | J24: 51586.66 | K24: 29828.66
A25: Долгосрочная целевая программв "Многодетная семья,2009-2010годы" | B25: 974 | C25: 0701 | D25: 7953000 | G25: 38512 | H25: =H26 -> 4219 | I25: 4161 | J25: 18247 | K25: 11885
A26: Расходы на реализацию долгосрочных целевых программ | B26: 974 | C26: 0701 | D26: 7953000 | E26: 950 | G26: 38512 | H26: 4219 | I26: 4161 | J26: 18247 | K26: 11885
A27: Увеличение стоимости материальных запасов | B27: 974 | C27: 0701 | D27: 7953000 | E27: 950 | F27: 340 | G27: 38512 | H27: 4219 | I27: 4161 | J27: 18247 | K27: 11885
A28: Организация предоставления общедоступного бесплатного дошкольного образования и воспитания, содержание ребенка в дошкольном образовательном учреждении | B28: 974 | C28: 0701 | D28: 7969741 | G28: 24052013.5 | H28: =H29 -> 1982511.88 | I28: =I29 -> 7798841.92 | J28: =J29 -> 5980497.7 | K28: =K29 -> 8290162
A29: Оказание услуг подведомственными учреждениями | B29: 974 | C29: 0701 | D29: 7969741 | E29: 901 | G29: 24052013.5 | H29: =H30+H31+H32+H33+H34+H35+H36+H37+H38 -> 1982511.88 | I29: =I30+I31+I32+I33+I34+I35+I36+I37+I38 -> 7798841.92 | J29: =J30+J31+J32+J33+J34+J35+J36+J37+J38 -> 5980497.7 | K29: =K30+K31+K32+K33+K34+K35+K36+K37+K38 -> 8290162
A30: Заработная плата | B30: 974 | C30: 0701 | D30: 7969741 | E30: 901 | F30: 211 | G30: 13647407.16 | H30: 930865.73 | I30: 4577041.43 | J30: 3738161 | K30: 4401339
A31: Прочие выплаты | B31: 974 | C31: 0701 | D31: 7969741 | E31: 901 | F31: 212 | G31: 92900 | H31: 8600 | I31: 29050 | J31: 27450 | K31: 27800
A32: Начисления на оплату труда | B32: 974 | C32: 0701 | D32: 7969741 | E32: 901 | F32: 213 | G32: 4750884.9 | H32: 304383.98 | I32: 1556045.92 | J32: 1109301 | K32: 1781154
A33: Услуги связи | B33: 974 | C33: 0701 | D33: 7969741 | E33: 901 | F33: 221 | G33: 33181.95 | H33: 2967 | I33: 11927.95 | J33: 9194 | K33: 9093
A34: Коммунальные услуги | B34: 974 | C34: 0701 | D34: 7969741 | E34: 901 | F34: 223 | G34: 3059396.5 | H34: 499131 | I34: 665918.5 | J34: 424518 | K34: 1469829
A35: Работы, услуги по содержанию имущества | B35: 974 | C35: 0701 | D35: 7969741 | E35: 901 | F35: 225 | G35: 170212.78 | H35: 25059.17 | I35: 60570.61 | J35: 54640 | K35: 29943
A36: Прочие работы, услуги, в том числе | B36: 974 | C36: 0701 | D36: 7969741 | E36: 901 | F36: 226 | G36: 242067.27 | H36: 38565 | I36: 125246.57 | J36: 65472.7 | K36: 12783
A37: Прочие расходы | B37: 974 | C37: 0701 | D37: 7969741 | E37: 901 | F37: 290 | G37: 1137142.7 | H37: 112859 | I37: 340556.7 | J37: 341863 | K37: 341864
A38: Увеличение стоимости материальных запасов | B38: 974 | C38: 0701 | D38: 7969741 | E38: 901 | F38: 340 | G38: 918820.24 | H38: 60081 | I38: 432484.24 | J38: 209898 | K38: 216357
A39: Ведомственная целевая программа развития "Дошкольное детство(2011-2013гг.)" | B39: 974 | C39: 0701 | D39: 7976302 | G39: 1542996.52 | H39: =H40 -> 84751 | I39: 508686.92 | J39: 488821.04 | K39: 460737.56
A40: Расходы на реализацию ведомственных целевых программ | B40: 974 | C40: 0701 | D40: 7976302 | E40: 951 | G40: 1542996.52 | H40: 84751 | I40: 508686.92 | J40: 488821.04 | K40: 460737.56
A41: Прочие работы, услуги | B41: 974 | C41: 0701 | D41: 7976302 | E41: 951 | F41: 340 | G41: 1542996.52 | H41: 84751 | I41: 508686.92 | J41: 488821.04 | K41: 460737.56
A42: Долгосрочная целевая программа города Пензы "Здоровый ребенок" на 2011-2013 годы | B42: 974 | C42: 0701 | D42: 7950101 | G42: 798242 | H42: =H43 -> 0 | I42: =I43 -> 46563 | J42: 751679 | K42: 0
A43: Расходы на реализацию долгосрочных целевых программ | B43: 974 | C43: 0701 | D43: 7950101 | E43: 950 | G43: 798242 | H43: 0 | I43: =I44+I45 -> 46563 | J43: =J44+J45 -> 751679 | K43: 0
A44: Увеличение стоимости основных средств | B44: 974 | C44: 0701 | D44: 6000200 | E44: 950 | F44: 310 | G44: 58242 | H44: 0 | I44: 46563 | J44: 11679 | K44: 0
A45: Прочие работы, услуги | B45: 974 | C45: 0701 | D45: 6000200 | E45: 950 | F45: 226 | G45: 740000 | H45: =H46 -> 0 | I45: =I46 -> 0 | J45: 740000 | K45: =K46 -> 0
A47: Заведующая | D47: С.В.Петрунина
A48: Гл.бухгалтер | D48: О.А.Зайцева

Sheet 21.07.11
J1: Ю.А.Голодяев
A2: БЮДЖЕТНАЯ СМЕТА
E3: НА 21 июля 2011 ГОД
A4: Получатель средств бюджета | J4: коды
A5: МДОУ № 137 | I5: ОКПО
I6: СРРПБС
A7: Единица измерения : руб. | I7: ОКЕИ | J7: 383
A9: Наименование расхода | B9: Код | G9: Сумма , руб | H9: в том чисе по кварталам
B10: раздел | C10: подраздел | D10: целевая статья расхода | E10: вид расхода | F10: КОСГУ | H10: 1квартал | I10: 2квартал | J10: 3квартал | K10: 4квартал
A11: 1 | B11: 2 | C11: 3 | D11: 4 | E11: 5 | F11: 6 | G11: 7 | H11: 8 | I11: 9 | J11: 10 | K11: 11
A12: Расходы, всего | G12: =H12+I12+J12+K12 -> 63758119.17 | H12: =H13+H18+H22+H25+H28+H39+H42 -> 4478138 | I12: =I13+I18+I22+I25+I28+I39+I42 -> 12248437.84 | J12: =J13+J18+J22+J25+J28+J39+J42 -> 10999464.77 | K12: =K13+K18+K22+K25+K28+K39+K42 -> 36032078.56
A13: Обеспечение деятельности подведомственных учреждений | B13: 974 | C13: 0701 | D13: 4209900 | G13: =H13+I13+J13+K13 -> 3913723.03 | H13: =H14+H16 -> 279913 | I13: =I14+I16 -> 1169378 | J13: =J14+J16 -> 1913950.03 | K13: =K14+K16 -> 550482
A14: Расходы за счет доходов от платных услуг | B14: 974 | C14: 0701 | D14: 4209900 | E14: 900 | G14: 3907723.03 | H14: =H15 -> 279913 | I14: =I15 -> 1166378 | J14: =J15 -> 1910950.03 | K14: =K15 -> 550482
A15: Увеличение стоимости материальных запасов | B15: 974 | C15: 0701 | D15: 4209900 | E15: 900 | F15: 340 | G15: 3907723.03 | H15: 279913 | I15: 1166378 | J15: 1910950.03 | K15: 550482
A16: Расходы за счет прочих безвозмездных поступлений | B16: 974 | C16: 0701 | D16: 4209900 | E16: 910 | G16: =H16+I16+J16+K16 -> 6000 | H16: =H17 -> 0 | I16: =I17 -> 3000 | J16: =J17 -> 3000 | K16: =K17 -> 0
A17: Увеличение стоимости основных средств | B17: 974 | C17: 0701 | D17: 4209900 | E17: 910 | F17: 310 | G17: 6000 | I17: 3000 | J17: 3000
A18: Долгосрочная целевая программа "Укрепление материально-технической базы и проведение капитального ремонта зданий и сооружений учреждений, подведомственных Управлению образования города Пензы и здания Управления образования города Пензы на 2010-2012 г.г." | B18: 974 | C18: 0701 | D18: 7950600 | G18: 32587190.12 | H18: =H19 -> 2082467.12 | I18: =I19 -> 2676531 | J18: =J19 -> 1153656 | K18: =K19 -> 26674536
A19: Расходы на реализацию долгосрочных целевых программ | B19: 974 | C19: 0701 | D19: 7950600 | E19: 950 | G19: 32587190.12 | H19: =H21 -> 2082467.12 | I19: =I20+I21 -> 2676531 | J19: =J21 -> 1153656 | K19: =K21 -> 26674536
A20: Увеличение стоимости основных средств | B20: 974 | C20: 0701 | D20: 7950600 | E20: 950 | F20: 310 | G20: =H20+I20+J20+K20 -> 1151020 | I20: 1151020
A21: Прочие работы , услуги | B21: 974 | C21: 0701 | D21: 7950600 | E21: 950 | F21: 225 | G21: 31436170.12 | H21: 2082467.12 | I21: 1525511 | J21: 1153656 | K21: 26674536
A22: Расходы на реализацию долгосрочных целевых программ | B22: 974 | C22: 0701 | D22: 7950800 | E22: 950 | G22: 265442 | H22: =H24 -> 44276 | I22: =I23+I24 -> 44276 | J22: =J23+J24 -> 132614 | K22: =K23+K24 -> 44276
A23: Работы, услуги по содержанию имущества | B23: 974 | C23: 0701 | D23: 7950800 | E23: 950 | F23: 225 | G23: =H23+I23+J23+K23 -> 124369.36 | I23: 28894.68 | J23: 81027.34 | K23: 14447.34
A24: Прочие работы, услуги | B24: 974 | C24: 0701 | D24: 7950800 | E24: 950 | F24: 226 | G24: 141072.64 | H24: 44276 | I24: 15381.32 | J24: 51586.66 | K24: 29828.66
A25: Долгосрочная целевая программв "Многодетная семья,2009-2010годы" | B25: 974 | C25: 0701 | D25: 7953000 | G25: 38512 | H25: =H26 -> 4219 | I25: 4161 | J25: 18247 | K25: 11885
A26: Расходы на реализацию долгосрочных целевых программ | B26: 974 | C26: 0701 | D26: 7953000 | E26: 950 | G26: 38512 | H26: 4219 | I26: 4161 | J26: 18247 | K26: 11885
A27: Увеличение стоимости материальных запасов | B27: 974 | C27: 0701 | D27: 7953000 | E27: 950 | F27: 340 | G27: 38512 | H27: 4219 | I27: 4161 | J27: 18247 | K27: 11885
A28: Организация предоставления общедоступного бесплатного дошкольного образования и воспитания, содержание ребенка в дошкольном образовательном учреждении | B28: 974 | C28: 0701 | D28: 7969741 | G28: 24052013.5 | H28: =H29 -> 1982511.88 | I28: =I29 -> 7798841.92 | J28: =J29 -> 5980497.7 | K28: =K29 -> 8290162
A29: Оказание услуг подведомственными учреждениями | B29: 974 | C29: 0701 | D29: 7969741 | E29: 901 | G29: 24052013.5 | H29: =H30+H31+H32+H33+H34+H35+H36+H37+H38 -> 1982511.88 | I29: =I30+I31+I32+I33+I34+I35+I36+I37+I38 -> 7798841.92 | J29: =J30+J31+J32+J33+J34+J35+J36+J37+J38 -> 5980497.7 | K29: =K30+K31+K32+K33+K34+K35+K36+K37+K38 -> 8290162
A30: Заработная плата | B30: 974 | C30: 0701 | D30: 7969741 | E30: 901 | F30: 211 | G30: 13647407.16 | H30: 930865.73 | I30: 4577041.43 | J30: 3738161 | K30: 4401339
A31: Прочие выплаты | B31: 974 | C31: 0701 | D31: 7969741 | E31: 901 | F31: 212 | G31: 92900 | H31: 8600 | I31: 29050 | J31: 27450 | K31: 27800
A32: Начисления на оплату труда | B32: 974 | C32: 0701 | D32: 7969741 | E32: 901 | F32: 213 | G32: 4750884.9 | H32: 304383.98 | I32: 1556045.92 | J32: 1109301 | K32: 1781154
A33: Услуги связи | B33: 974 | C33: 0701 | D33: 7969741 | E33: 901 | F33: 221 | G33: 33181.95 | H33: 2967 | I33: 11927.95 | J33: 9194 | K33: 9093
A34: Коммунальные услуги | B34: 974 | C34: 0701 | D34: 7969741 | E34: 901 | F34: 223 | G34: 3059396.5 | H34: 499131 | I34: 665918.5 | J34: 424518 | K34: 1469829
A35: Работы, услуги по содержанию имущества | B35: 974 | C35: 0701 | D35: 7969741 | E35: 901 | F35: 225 | G35: 170212.78 | H35: 25059.17 | I35: 60570.61 | J35: 54640 | K35: 29943
A36: Прочие работы, услуги, в том числе | B36: 974 | C36: 0701 | D36: 7969741 | E36: 901 | F36: 226 | G36: 242067.27 | H36: 38565 | I36: 125246.57 | J36: 65472.7 | K36: 12783
A37: Прочие расходы | B37: 974 | C37: 0701 | D37: 7969741 | E37: 901 | F37: 290 | G37: 1137142.7 | H37: 112859 | I37: 340556.7 | J37: 341863 | K37: 341864
A38: Увеличение стоимости материальных запасов | B38: 974 | C38: 0701 | D38: 7969741 | E38: 901 | F38: 340 | G38: 918820.24 | H38: 60081 | I38: 432484.24 | J38: 209898 | K38: 216357
A39: Ведомственная целевая программа развития "Дошкольное детство(2011-2013гг.)" | B39: 974 | C39: 0701 | D39: 7976302 | G39: 1542996.52 | H39: =H40 -> 84751 | I39: 508686.92 | J39: 488821.04 | K39: 460737.56
A40: Расходы на реализацию ведомственных целевых программ | B40: 974 | C40: 0701 | D40: 7976302 | E40: 951 | G40: 1542996.52 | H40: 84751 | I40: 508686.92 | J40: 488821.04 | K40: 460737.56
A41: Прочие работы, услуги | B41: 974 | C41: 0701 | D41: 7976302 | E41: 951 | F41: 340 | G41: 1542996.52 | H41: 84751 | I41: 508686.92 | J41: 488821.04 | K41: 460737.56
A42: Долгосрочная целевая программа города Пензы "Здоровый ребенок" на 2011-2013 годы | B42: 974 | C42: 0701 | D42: 7950101 | G42: 1358242 | H42: =H43 -> 0 | I42: =I43 -> 46563 | J42: 1311679 | K42: 0
A43: Расходы на реализацию долгосрочных целевых программ | B43: 974 | C43: 0701 | D43: 7950101 | E43: 950 | G43: 1358242 | H43: 0 | I43: =I44+I45 -> 46563 | J43: =J44+J45 -> 1311679 | K43: 0
A44: Увеличение стоимости основных средств | B44: 974 | C44: 0701 | D44: 7950101 | E44: 950 | F44: 310 | G44: 58242 | H44: 0 | I44: 46563 | J44: 11679 | K44: 0
A45: Прочие работы, услуги | B45: 974 | C45: 0701 | D45: 7950101 | E45: 950 | F45: 226 | G45: 1300000 | H45: =H46 -> 0 | I45: =I46 -> 0 | J45: 1300000 | K45: =K46 -> 0
A47: Заведующая | D47: С.В.Петрунина
A48: Гл.бухгалтер | D48: О.А.Зайцева

Sheet 22.07.11
J1: Ю.А.Голодяев
A2: БЮДЖЕТНАЯ СМЕТА
E3: НА 22 июля 2011 ГОД
A4: Получатель средств бюджета | J4: коды
A5: МДОУ № 137 | I5: ОКПО
I6: СРРПБС
A7: Единица измерения : руб. | I7: ОКЕИ | J7: 383
A9: Наименование расхода | B9: Код | G9: Сумма , руб | H9: в том чисе по кварталам
B10: раздел | C10: подраздел | D10: целевая статья расхода | E10: вид расхода | F10: КОСГУ | H10: 1квартал | I10: 2квартал | J10: 3квартал | K10: 4квартал
A11: 1 | B11: 2 | C11: 3 | D11: 4 | E11: 5 | F11: 6 | G11: 7 | H11: 8 | I11: 9 | J11: 10 | K11: 11
A12: Расходы, всего | G12: =H12+I12+J12+K12 -> 63688696.09 | H12: =H13+H18+H22+H25+H28+H39+H42 -> 2601691.56 | I12: =I13+I16+I18+I22+I25+I28+I39+I420 -> 10298434.78 | J12: =J13+J18+J22+J25+J28+J39+J42 -> 13737427.45 | K12: =K13+K18+K22+K25+K28+K39+K42 -> 37051142.3
A13: Обеспечение деятельности подведомственных учреждений | B13: 974 | C13: 0701 | D13: 4209900 | G13: =H13+I13+J13+K13 -> 3913723.03 | H13: =H14+H16 -> 433133.68 | I13: =I14+I16 -> 1169378 | J13: =J14+J16 -> 1760729.35 | K13: =K14+K16 -> 550482
A14: Расходы за счет доходов от платных услуг | B14: 974 | C14: 0701 | D14: 4209900 | E14: 900 | G14: 3907723.03 | H14: =H15 -> 433133.68 | I14: =I15 -> 1166378 | J14: =J15 -> 1757729.35 | K14: =K15 -> 550482
A15: Увеличение стоимости материальных запасов | B15: 974 | C15: 0701 | D15: 4209900 | E15: 900 | F15: 340 | G15: 3907723.03 | H15: 433133.68 | I15: 1166378 | J15: 1757729.35 | K15: 550482
A16: Расходы за счет прочих безвозмездных поступлений | B16: 974 | C16: 0701 | D16: 4209900 | E16: 910 | G16: =H16+I16+J16+K16 -> 6000 | H16: =H17 -> 0 | I16: =I17 -> 3000 | J16: =J17 -> 3000 | K16: =K17 -> 0
A17: Увеличение стоимости основных средств | B17: 974 | C17: 0701 | D17: 4209900 | E17: 910 | F17: 310 | G17: 6000 | I17: 3000 | J17: 3000
A18: Долгосрочная целевая программа "Укрепление материально-технической базы и проведение капитального ремонта зданий и сооружений учреждений, подведомственных Управлению образования города Пензы и здания Управления образования города Пензы на 2010-2012 г.г." | B18: 974 | C18: 0701 | D18: 7950600 | G18: 32587190.12 | H18: =H19 -> 100000 | I18: =I19 -> 1736161 | J18: =J19 -> 4076493.12 | K18: =K19 -> 26674536
A19: Расходы на реализацию долгосрочных целевых программ | B19: 974 | C19: 0701 | D19: 7950600 | E19: 950 | G19: 32587190.12 | H19: =H21 -> 100000 | I19: =I20+I21 -> 1736161 | J19: =J21 -> 4076493.12 | K19: =K21 -> 26674536
A20: Увеличение стоимости основных средств | B20: 974 | C20: 0701 | D20: 7950600 | E20: 950 | F20: 310 | G20: =H20+I20+J20+K20 -> 1151020 | I20: 1151020
A21: Прочие работы , услуги | B21: 974 | C21: 0701 | D21: 7950600 | E21: 950 | F21: 225 | G21: 31436170.12 | H21: 100000 | I21: 585141 | J21: 4076493.12 | K21: 26674536
A22: Расходы на реализацию долгосрочных целевых программ | B22: 974 | C22: 0701 | D22: 7950800 | E22: 950 | G22: 193018.92 | H22: =H24 -> 0 | I22: 28894.68 | J22: =J23+J24 -> 119848.24 | K22: =K23+K24 -> 44276
A23: Работы, услуги по содержанию имущества | B23: 974 | C23: 0701 | D23: 7950800 | E23: 950 | F23: 225 | G23: =H23+I23+J23+K23 -> 124369.36 | I23: 28894.68 | J23: 81027.34 | K23: 14447.34
A24: Прочие работы, услуги | B24: 974 | C24: 0701 | D24: 7950800 | E24: 950 | F24: 226 | G24: 68649.56 | I24: 0 | J24: 38820.9 | K24: 29828.66
A25: Долгосрочная целевая программв "Многодетная семья,2009-2010годы" | B25: 974 | C25: 0701 | D25: 7953000 | G25: 38512 | H25: =H26 -> 4219 | I25: 4161 | J25: 18247 | K25: 11885
A26: Расходы на реализацию долгосрочных целевых программ | B26: 974 | C26: 0701 | D26: 7953000 | E26: 950 | G26: 38512 | H26: 4219 | I26: 4161 | J26: 18247 | K26: 11885
A27: Увеличение стоимости материальных запасов | B27: 974 | C27: 0701 | D27: 7953000 | E27: 950 | F27: 340 | G27: 38512 | H27: 4219 | I27: 4161 | J27: 18247 | K27: 11885
A28: Организация предоставления общедоступного бесплатного дошкольного образования и воспитания, содержание ребенка в дошкольном образовательном учреждении | B28: 974 | C28: 0701 | D28: 7969741 | G28: 24052013.5 | H28: =H29 -> 1979587.88 | I28: =I29 -> 7145667.12 | J28: =J29 -> 5961609.7 | K28: =K29 -> 8965148.8
A29: Оказание услуг подведомственными учреждениями | B29: 974 | C29: 0701 | D29: 7969741 | E29: 901 | G29: 24052013.5 | H29: =H30+H31+H32+H33+H34+H35+H36+H37+H38 -> 1979587.88 | I29: =I30+I31+I32+I33+I34+I35+I36+I37+I38 -> 7145667.12 | J29: =J30+J31+J32+J33+J34+J35+J36+J37+J38 -> 5961609.7 | K29: =K30+K31+K32+K33+K34+K35+K36+K37+K38 -> 8965148.8
A30: Заработная плата | B30: 974 | C30: 0701 | D30: 7969741 | E30: 901 | F30: 211 | G30: 13647407.16 | H30: 930865.73 | I30: 3975526 | J30: 3738161 | K30: 5002854.43
A31: Прочие выплаты | B31: 974 | C31: 0701 | D31: 7969741 | E31: 901 | F31: 212 | G31: 101700 | H31: 6200 | I31: 31450 | J31: 27450 | K31: 36600
A32: Начисления на оплату труда | B32: 974 | C32: 0701 | D32: 7969741 | E32: 901 | F32: 213 | G32: 4742084.9 | H32: 304383.98 | I32: 1374457 | J32: 1109301 | K32: 1953942.92
A33: Услуги связи | B33: 974 | C33: 0701 | D33: 7969741 | E33: 901 | F33: 221 | G33: 33181.95 | H33: 2967 | I33: 11927.95 | J33: 9194 | K33: 9093
A34: Коммунальные услуги | B34: 974 | C34: 0701 | D34: 7969741 | E34: 901 | F34: 223 | G34: 3059396.5 | H34: 499131 | I34: 793448.05 | J34: 405630 | K34: 1361187.45
A35: Работы, услуги по содержанию имущества | B35: 974 | C35: 0701 | D35: 7969741 | E35: 901 | F35: 225 | G35: 170212.78 | H35: 25059.17 | I35: 60570.61 | J35: 54640 | K35: 29943
A36: Прочие работы, услуги, в том числе | B36: 974 | C36: 0701 | D36: 7969741 | E36: 901 | F36: 226 | G36: 239467.27 | H36: 38565 | I36: 125246.57 | J36: 62872.7 | K36: 12783
A37: Прочие расходы | B37: 974 | C37: 0701 | D37: 7969741 | E37: 901 | F37: 290 | G37: 1139742.7 | H37: 112335 | I37: 340556.7 | J37: 344463 | K37: 342388
A38: Увеличение стоимости материальных запасов | B38: 974 | C38: 0701 | D38: 7969741 | E38: 901 | F38: 340 | G38: 918820.24 | H38: 60081 | I38: 432484.24 | J38: 209898 | K38: 216357
A39: Ведомственная целевая программа развития "Дошкольное детство(2011-2013гг.)" | B39: 974 | C39: 0701 | D39: 7976302 | G39: 1542996.52 | H39: =H40 -> 84751 | I39: 211172.98 | J39: 488821.04 | K39: 758251.5
A40: Расходы на реализацию ведомственных целевых программ | B40: 974 | C40: 0701 | D40: 7976302 | E40: 951 | G40: 1542996.52 | H40: 84751 | I40: 211172.98 | J40: 488821.04 | K40: 758251.5
A41: Прочие работы, услуги | B41: 974 | C41: 0701 | D41: 7976302 | E41: 951 | F41: 340 | G41: 1542996.52 | H41: 84751 | I41: 211172.98 | J41: 488821.04 | K41: 758251.5
A42: Долгосрочная целевая программа города Пензы "Здоровый ребенок" на 2011-2013 годы | B42: 974 | C42: 0701 | D42: 7950101 | G42: 1358242 | H42: =H43 -> 0 | I42: 0 | J42: 1311679 | K42: 46563
A43: Расходы на реализацию долгосрочных целевых программ | B43: 974 | C43: 0701 | D43: 7950101 | E43: 950 | G43: 1358242 | H43: 0 | I43: =I44+I45 -> 46563 | J43: =J44+J45 -> 1311679 | K43: 0
A44: Увеличение стоимости основных средств | B44: 974 | C44: 0701 | D44: 7950101 | E44: 950 | F44: 310 | G44: 58242 | H44: 0 | I44: 46563 | J44: 11679 | K44: 0
A45: Прочие работы, услуги | B45: 974 | C45: 0701 | D45: 7950101 | E45: 950 | F45: 226 | G45: 1300000 | H45: =H46 -> 0 | I45: =I46 -> 0 | J45: 1300000 | K45: =K46 -> 0
A47: Заведующая | D47: С.В.Петрунина
A48: Гл.бухгалтер | D48: О.А.Зайцева

Sheet 19.08.2011
J1: Ю.А.Голодяев
A2: БЮДЖЕТНАЯ СМЕТА
D3: 2011-08-19
A4: Получатель средств бюджета | J4: коды
A5: МБДОУ № 137 | I5: ОКПО
I6: СРРПБС
A7: Единица измерения : руб. | I7: ОКЕИ | J7: 383
A9: Наименование расхода | B9: Код | G9: Сумма , руб | H9: в том чисе по кварталам
B10: раздел | C10: подраздел | D10: целевая статья расхода | E10: вид расхода | F10: КОСГУ | H10: 1квартал | I10: 2квартал | J10: 3квартал | K10: 4квартал
A11: 1 | B11: 2 | C11: 3 | D11: 4 | E11: 5 | F11: 6 | G11: 7 | H11: 8 | I11: 9 | J11: 10 | K11: 11
A12: Расходы, всего | G12: =H12+I12+J12+K12 -> 70611612.1 | H12: =H13+H18+H22+H25+H28+H39+H42 -> 2601691.56 | I12: =I13+I18+I22+I25+I28+I39+I420 -> 10295434.78 | J12: =J13+J18+J22+J25+J28+J39+J42+J46 -> 21213474.45 | K12: =K13+K18+K22+K25+K28+K39+K42+K46 -> 36501011.31
A13: Обеспечение деятельности подведомственных учреждений | B13: 974 | C13: 0701 | D13: 4209900 | G13: =H13+I13+J13+K13 -> 3913723.03 | H13: =H14+H16 -> 433133.68 | I13: =I14+I16 -> 1169378 | J13: =J14+J16 -> 1760729.35 | K13: =K14+K16 -> 550482
A14: Расходы за счет доходов от платных услуг | B14: 974 | C14: 0701 | D14: 4209900 | E14: 900 | G14: 3907723.03 | H14: =H15 -> 433133.68 | I14: =I15 -> 1166378 | J14: =J15 -> 1757729.35 | K14: =K15 -> 550482
A15: Увеличение стоимости материальных запасов | B15: 974 | C15: 0701 | D15: 4209900 | E15: 900 | F15: 340 | G15: 3907723.03 | H15: 433133.68 | I15: 1166378 | J15: 1757729.35 | K15: 550482
A16: Расходы за счет прочих безвозмездных поступлений | B16: 974 | C16: 0701 | D16: 4209900 | E16: 910 | G16: =H16+I16+J16+K16 -> 6000 | H16: =H17 -> 0 | I16: =I17 -> 3000 | J16: =J17 -> 3000 | K16: =K17 -> 0
A17: Увеличение стоимости основных средств | B17: 974 | C17: 0701 | D17: 4209900 | E17: 910 | F17: 310 | G17: 6000 | I17: 3000 | J17: 3000
A18: Долгосрочная целевая программа "Укрепление материально-технической базы и проведение капитального ремонта зданий и сооружений учреждений, подведомственных Управлению образования города Пензы и здания Управления образования города Пензы на 2010-2012 г.г." | B18: 974 | C18: 0701 | D18: 7950600 | G18: 39683614.12 | H18: =H19 -> 100000 | I18: =I19 -> 1736161 | J18: =J19 -> 11172917.12 | K18: =K19 -> 26674536
A19: Расходы на реализацию долгосрочных целевых программ | B19: 974 | C19: 0701 | D19: 7950600 | E19: 950 | G19: 39683614.12 | H19: =H21 -> 100000 | I19: =I20+I21 -> 1736161 | J19: =J21 -> 11172917.12 | K19: =K21 -> 26674536
A20: Увеличение стоимости основных средств | B20: 974 | C20: 0701 | D20: 7950600 | E20: 950 | F20: 310 | G20: =H20+I20+J20+K20 -> 1151020 | I20: 1151020
A21: Прочие работы , услуги | B21: 974 | C21: 0701 | D21: 7950600 | E21: 950 | F21: 225 | G21: 38532594.12 | H21: 100000 | I21: 585141 | J21: 11172917.12 | K21: 26674536
A22: Расходы на реализацию долгосрочных целевых программ | B22: 974 | C22: 0701 | D22: 7950800 | E22: 950 | G22: 193018.92 | H22: =H24 -> 0 | I22: 28894.68 | J22: =J23+J24 -> 119848.24 | K22: =K23+K24 -> 44276
A23: Работы, услуги по содержанию имущества | B23: 974 | C23: 0701 | D23: 7950800 | E23: 950 | F23: 225 | G23: =H23+I23+J23+K23 -> 124369.36 | I23: 28894.68 | J23: 81027.34 | K23: 14447.34
A24: Прочие работы, услуги | B24: 974 | C24: 0701 | D24: 7950800 | E24: 950 | F24: 226 | G24: 68649.56 | I24: 0 | J24: 38820.9 | K24: 29828.66
A25: Долгосрочная целевая программв "Многодетная семья,2009-2010годы" | B25: 974 | C25: 0701 | D25: 7953000 | G25: 38512 | H25: =H26 -> 4219 | I25: 4161 | J25: 18247 | K25: 11885
A26: Расходы на реализацию долгосрочных целевых программ | B26: 974 | C26: 0701 | D26: 7953000 | E26: 950 | G26: 38512 | H26: 4219 | I26: 4161 | J26: 18247 | K26: 11885
A27: Увеличение стоимости материальных запасов | B27: 974 | C27: 0701 | D27: 7953000 | E27: 950 | F27: 340 | G27: 38512 | H27: 4219 | I27: 4161 | J27: 18247 | K27: 11885
A28: Организация предоставления общедоступного бесплатного дошкольного образования и воспитания, содержание ребенка в дошкольном образовательном учреждении | B28: 974 | C28: 0701 | D28: 7969741 | G28: 23501505.51 | H28: =H29 -> 1979587.88 | I28: =I29 -> 7145667.12 | J28: =J29 -> 5961232.7 | K28: =K29 -> 8415017.81
A29: Оказание услуг подведомственными учреждениями | B29: 974 | C29: 0701 | D29: 7969741 | E29: 901 | G29: 23501505.51 | H29: =H30+H31+H32+H33+H34+H35+H36+H37+H38 -> 1979587.88 | I29: =I30+I31+I32+I33+I34+I35+I36+I37+I38 -> 7145667.12 | J29: =J30+J31+J32+J33+J34+J35+J36+J37+J38 -> 5961232.7 | K29: =K30+K31+K32+K33+K34+K35+K36+K37+K38 -> 8415017.81
A30: Заработная плата | B30: 974 | C30: 0701 | D30: 7969741 | E30: 901 | F30: 211 | G30: 13239586.75 | H30: 930865.73 | I30: 3975526 | J30: 3738161 | K30: 4595034.02
A31: Прочие выплаты | B31: 974 | C31: 0701 | D31: 7969741 | E31: 901 | F31: 212 | G31: 98864 | H31: 6200 | I31: 31450 | J31: 27450 | K31: 33764
A32: Начисления на оплату труда | B32: 974 | C32: 0701 | D32: 7969741 | E32: 901 | F32: 213 | G32: 4602610.32 | H32: 304383.98 | I32: 1374457 | J32: 1109301 | K32: 1814468.34
A33: Услуги связи | B33: 974 | C33: 0701 | D33: 7969741 | E33: 901 | F33: 221 | G33: 33181.95 | H33: 2967 | I33: 11927.95 | J33: 9194 | K33: 9093
A34: Коммунальные услуги | B34: 974 | C34: 0701 | D34: 7969741 | E34: 901 | F34: 223 | G34: 3059396.5 | H34: 499131 | I34: 793448.05 | J34: 405630 | K34: 1361187.45
A35: Работы, услуги по содержанию имущества | B35: 974 | C35: 0701 | D35: 7969741 | E35: 901 | F35: 225 | G35: 170212.78 | H35: 25059.17 | I35: 60570.61 | J35: 54640 | K35: 29943
A36: Прочие работы, услуги, в том числе | B36: 974 | C36: 0701 | D36: 7969741 | E36: 901 | F36: 226 | G36: 236490.27 | H36: 38565 | I36: 125246.57 | J36: 59895.7 | K36: 12783
A37: Прочие расходы | B37: 974 | C37: 0701 | D37: 7969741 | E37: 901 | F37: 290 | G37: 1142342.7 | H37: 112335 | I37: 340556.7 | J37: 347063 | K37: 342388
A38: Увеличение стоимости материальных запасов | B38: 974 | C38: 0701 | D38: 7969741 | E38: 901 | F38: 340 | G38: 918820.24 | H38: 60081 | I38: 432484.24 | J38: 209898 | K38: 216357
A39: Ведомственная целевая программа развития "Дошкольное детство(2011-2013гг.)" | B39: 974 | C39: 0701 | D39: 7976302 | G39: 1542996.52 | H39: =H40 -> 84751 | I39: 211172.98 | J39: 488821.04 | K39: 758251.5
A40: Расходы на реализацию ведомственных целевых программ | B40: 974 | C40: 0701 | D40: 7976302 | E40: 951 | G40: 1542996.52 | H40: 84751 | I40: 211172.98 | J40: 488821.04 | K40: 758251.5
A41: Прочие работы, услуги | B41: 974 | C41: 0701 | D41: 7976302 | E41: 951 | F41: 340 | G41: 1542996.52 | H41: 84751 | I41: 211172.98 | J41: 488821.04 | K41: 758251.5
A42: Долгосрочная целевая программа города Пензы "Здоровый ребенок" на 2011-2013 годы | B42: 974 | C42: 0701 | D42: 7950101 | G42: 1738242 | H42: =H43 -> 0 | I42: 0 | J42: =J43 -> 1691679 | K42: 46563
A43: Расходы на реализацию долгосрочных целевых программ | B43: 974 | C43: 0701 | D43: 7950101 | E43: 950 | G43: 1784805 | H43: =H44 -> 0 | I43: =K44+I45 -> 46563 | J43: =J44+J45 -> 1691679 | K43: =K44 -> 46563
A44: Увеличение стоимости основных средств | B44: 974 | C44: 0701 | D44: 7950101 | E44: 950 | F44: 310 | G44: =K44+J44+I44+H44 -> 58242 | H44: 0 | J44: 11679 | K44: 46563
A45: Прочие работы, услуги | B45: 974 | C45: 0701 | D45: 7950101 | E45: 950 | F45: 226 | G45: 1680000 | H45: =H46 -> 0 | I45: =I46 -> 0 | J45: 1680000 | K45: =K46 -> 0
A51: Заведующая | C51: С.В.Петрунина
A53: главный бухгалтер | C53: О.А.Зайцева

Sheet 31,08.11
J1: Ю.А.Голодяев
A2: БЮДЖЕТНАЯ СМЕТА
D3: 2011-08-31
A4: Получатель средств бюджета | J4: коды
A5: МБДОУ № 137 | I5: ОКПО
I6: СРРПБС
A7: Единица измерения : руб. | I7: ОКЕИ | J7: 383
A9: Наименование расхода | B9: Код | G9: Сумма , руб | H9: в том чисе по кварталам
B10: раздел | C10: подраздел | D10: целевая статья расхода | E10: вид расхода | F10: КОСГУ | H10: 1квартал | I10: 2квартал | J10: 3квартал | K10: 4квартал
A11: 1 | B11: 2 | C11: 3 | D11: 4 | E11: 5 | F11: 6 | G11: 7 | H11: 8 | I11: 9 | J11: 10 | K11: 11
A12: Расходы, всего | G12: =H12+I12+J12+K12 -> 70669517.78 | H12: =H13+H18+H22+H25+H28+H39+H42 -> 2601691.56 | I12: =I13+I18+I22+I25+I28+I39+I420 -> 10295434.78 | J12: =J13+J18+J22+J25+J28+J39+J42+J46 -> 21228850.02 | K12: =K13+K18+K22+K25+K28+K39+K42+K46 -> 36543541.42
A13: Обеспечение деятельности подведомственных учреждений | B13: 974 | C13: 0701 | D13: 4209900 | G13: =H13+I13+J13+K13 -> 3913723.03 | H13: =H14+H16 -> 433133.68 | I13: =I14+I16 -> 1169378 | J13: =J14+J16 -> 1760729.35 | K13: =K14+K16 -> 550482
A14: Расходы за счет доходов от платных услуг | B14: 974 | C14: 0701 | D14: 4209900 | E14: 900 | G14: 3907723.03 | H14: =H15 -> 433133.68 | I14: =I15 -> 1166378 | J14: =J15 -> 1757729.35 | K14: =K15 -> 550482
A15: Увеличение стоимости материальных запасов | B15: 974 | C15: 0701 | D15: 4209900 | E15: 900 | F15: 340 | G15: 3907723.03 | H15: 433133.68 | I15: 1166378 | J15: 1757729.35 | K15: 550482
A16: Расходы за счет прочих безвозмездных поступлений | B16: 974 | C16: 0701 | D16: 4209900 | E16: 910 | G16: =H16+I16+J16+K16 -> 6000 | H16: =H17 -> 0 | I16: =I17 -> 3000 | J16: =J17 -> 3000 | K16: =K17 -> 0
A17: Увеличение стоимости основных средств | B17: 974 | C17: 0701 | D17: 4209900 | E17: 910 | F17: 310 | G17: 6000 | I17: 3000 | J17: 3000
A18: Долгосрочная целевая программа "Укрепление материально-технической базы и проведение капитального ремонта зданий и сооружений учреждений, подведомственных Управлению образования города Пензы и здания Управления образования города Пензы на 2010-2012 г.г." | B18: 974 | C18: 0701 | D18: 7950600 | G18: 39683614.12 | H18: =H19 -> 100000 | I18: =I19 -> 1736161 | J18: =J19 -> 11172917.12 | K18: =K19 -> 26674536
A19: Расходы на реализацию долгосрочных целевых программ | B19: 974 | C19: 0701 | D19: 7950600 | E19: 950 | G19: 39683614.12 | H19: =H21 -> 100000 | I19: =I20+I21 -> 1736161 | J19: =J21 -> 11172917.12 | K19: =K21 -> 26674536
A20: Увеличение стоимости основных средств | B20: 974 | C20: 0701 | D20: 7950600 | E20: 950 | F20: 310 | G20: =H20+I20+J20+K20 -> 1151020 | I20: 1151020
A21: Прочие работы , услуги | B21: 974 | C21: 0701 | D21: 7950600 | E21: 950 | F21: 225 | G21: 38532594.12 | H21: 100000 | I21: 585141 | J21: 11172917.12 | K21: 26674536
A22: Расходы на реализацию долгосрочных целевых программ | B22: 974 | C22: 0701 | D22: 7950800 | E22: 950 | G22: 193018.92 | H22: =H24 -> 0 | I22: 28894.68 | J22: =J23+J24 -> 119848.24 | K22: =K23+K24 -> 44276
A23: Работы, услуги по содержанию имущества | B23: 974 | C23: 0701 | D23: 7950800 | E23: 950 | F23: 225 | G23: =H23+I23+J23+K23 -> 124369.36 | I23: 28894.68 | J23: 81027.34 | K23: 14447.34
A24: Прочие работы, услуги | B24: 974 | C24: 0701 | D24: 7950800 | E24: 950 | F24: 226 | G24: 68649.56 | I24: 0 | J24: 38820.9 | K24: 29828.66
A25: Долгосрочная целевая программв "Многодетная семья,2009-2010годы" | B25: 974 | C25: 0701 | D25: 7953000 | G25: 38512 | H25: =H26 -> 4219 | I25: 4161 | J25: 18247 | K25: 11885
A26: Расходы на реализацию долгосрочных целевых программ | B26: 974 | C26: 0701 | D26: 7953000 | E26: 950 | G26: 38512 | H26: 4219 | I26: 4161 | J26: 18247 | K26: 11885
A27: Увеличение стоимости материальных запасов | B27: 974 | C27: 0701 | D27: 7953000 | E27: 950 | F27: 340 | G27: 38512 | H27: 4219 | I27: 4161 | J27: 18247 | K27: 11885
A28: Организация предоставления общедоступного бесплатного дошкольного образования и воспитания, содержание ребенка в дошкольном образовательном учреждении | B28: 974 | C28: 0701 | D28: 7969741 | G28: 23501505.51 | H28: =H29 -> 1979587.88 | I28: =I29 -> 7145667.12 | J28: =J29 -> 5961232.7 | K28: =K29 -> 8415017.81
A29: Оказание услуг подведомственными учреждениями | B29: 974 | C29: 0701 | D29: 7969741 | E29: 901 | G29: 23501505.51 | H29: =H30+H31+H32+H33+H34+H35+H36+H37+H38 -> 1979587.88 | I29: =I30+I31+I32+I33+I34+I35+I36+I37+I38 -> 7145667.12 | J29: =J30+J31+J32+J33+J34+J35+J36+J37+J38 -> 5961232.7 | K29: =K30+K31+K32+K33+K34+K35+K36+K37+K38 -> 8415017.81
A30: Заработная плата | B30: 974 | C30: 0701 | D30: 7969741 | E30: 901 | F30: 211 | G30: 13239586.75 | H30: 930865.73 | I30: 3975526 | J30: 3738161 | K30: 4595034.02
A31: Прочие выплаты | B31: 974 | C31: 0701 | D31: 7969741 | E31: 901 | F31: 212 | G31: 98864 | H31: 6200 | I31: 31450 | J31: 27450 | K31: 33764
A32: Начисления на оплату труда | B32: 974 | C32: 0701 | D32: 7969741 | E32: 901 | F32: 213 | G32: 4602610.32 | H32: 304383.98 | I32: 1374457 | J32: 1109301 | K32: 1814468.34
A33: Услуги связи | B33: 974 | C33: 0701 | D33: 7969741 | E33: 901 | F33: 221 | G33: 33181.95 | H33: 2967 | I33: 11927.95 | J33: 9194 | K33: 9093
A34: Коммунальные услуги | B34: 974 | C34: 0701 | D34: 7969741 | E34: 901 | F34: 223 | G34: 3059396.5 | H34: 499131 | I34: 793448.05 | J34: 405630 | K34: 1361187.45
A35: Работы, услуги по содержанию имущества | B35: 974 | C35: 0701 | D35: 7969741 | E35: 901 | F35: 225 | G35: 170212.78 | H35: 25059.17 | I35: 60570.61 | J35: 54640 | K35: 29943
A36: Прочие работы, услуги, в том числе | B36: 974 | C36: 0701 | D36: 7969741 | E36: 901 | F36: 226 | G36: 236490.27 | H36: 38565 | I36: 125246.57 | J36: 59895.7 | K36: 12783
A37: Прочие расходы | B37: 974 | C37: 0701 | D37: 7969741 | E37: 901 | F37: 290 | G37: 1142342.7 | H37: 112335 | I37: 340556.7 | J37: 347063 | K37: 342388
A38: Увеличение стоимости материальных запасов | B38: 974 | C38: 0701 | D38: 7969741 | E38: 901 | F38: 340 | G38: 918820.24 | H38: 60081 | I38: 432484.24 | J38: 209898 | K38: 216357
A39: Ведомственная целевая программа развития "Дошкольное детство(2011-2013гг.)" | B39: 974 | C39: 0701 | D39: 7976302 | G39: 1542996.52 | H39: =H40 -> 84751 | I39: 211172.98 | J39: 488821.04 | K39: 758251.5
A40: Расходы на реализацию ведомственных целевых программ | B40: 974 | C40: 0701 | D40: 7976302 | E40: 951 | G40: 1542996.52 | H40: 84751 | I40: 211172.98 | J40: 488821.04 | K40: 758251.5
A41: Прочие работы, услуги | B41: 974 | C41: 0701 | D41: 7976302 | E41: 951 | F41: 340 | G41: 1542996.52 | H41: 84751 | I41: 211172.98 | J41: 488821.04 | K41: 758251.5
A42: Долгосрочная целевая программа города Пензы "Здоровый ребенок" на 2011-2013 годы | B42: 974 | C42: 0701 | D42: 7950101 | G42: 1738242 | H42: =H43 -> 0 | I42: 0 | J42: =J43 -> 1691679 | K42: 46563
A43: Расходы на реализацию долгосрочных целевых программ | B43: 974 | C43: 0701 | D43: 7950101 | E43: 950 | G43: 1784805 | H43: =H44 -> 0 | I43: =K44+I45 -> 46563 | J43: =J44+J45 -> 1691679 | K43: =K44 -> 46563
A44: Увеличение стоимости основных средств | B44: 974 | C44: 0701 | D44: 7950101 | E44: 950 | F44: 310 | G44: =K44+J44+I44+H44 -> 58242 | H44: 0 | J44: 11679 | K44: 46563
A45: Прочие работы, услуги | B45: 974 | C45: 0701 | D45: 7950101 | E45: 950 | F45: 226 | G45: 1680000 | H45: =H46 -> 0 | I45: =I46 -> 0 | J45: 1680000
A46: Областная целевая программа "Энергосбережения и повышения энергетической эффективности Пенз.обл. на 2010-2020 г.г." | B46: 974 | C46: 0701 | D46: 522610 | E46: 476 | G46: 57905.68 | H46: =H47 -> 0 | I46: =I47 -> 0 | J46: =J47 -> 15375.57 | K46: =K47 -> 42530.11
A47: Расходы на реализацию долгосрочных целевых программ | B47: 974 | C47: 0701 | D47: 522610 | E47: 476 | G47: 57905.68 | H47: =H49 -> 0 | I47: =I48+I49 -> 0 | J47: =J48 -> 15375.57 | K47: =K48 -> 42530.11
A48: Прочие работы, услуги | B48: 974 | C48: 0701 | D48: 522610 | E48: 476 | F48: 225 | G48: =H48+I48+J48+K48 -> 57905.68 | J48: 15375.57 | K48: 42530.11
A51: Заведующая С.В.Петрунина | G51: Гл.бухгалтер О.А.Зайцева

Sheet 01,10,11
H1: УТВЕРЖДАЮ
J2: Ю.А.Голодяев
D3: БЮДЖЕТНАЯ СМЕТА
D4: на 01.10.2011г. | J4: коды
I5: ОКПО
A6: Получатель средств бюджета | C6: МБДОУ - ДЕТСКИЙ САД № 137 | I6: СРРПБС
A7: Единица измерения : руб. | I7: ОКЕИ | J7: 383
A9: Наименование расхода | B9: Код | G9: Сумма , руб | H9: в том чисе по кварталам
B10: раздел | C10: подраздел | D10: целевая статья расхода | E10: вид расхода | F10: КОСГУ | H10: 1квартал | I10: 2квартал | J10: 3квартал | K10: 4квартал
A11: 1 | B11: 2 | C11: 3 | D11: 4 | E11: 5 | F11: 6 | G11: 7 | H11: 8 | I11: 9 | J11: 10 | K11: 11
A12: Расходы, всего | G12: =H12+I12+J12+K12 -> 73410868.65 | H12: =H17+H22+H26+H29+H32+H43+H46 -> 2601691.56 | I12: =I17+I22+I26+I29+I32+I43+I424 -> 10295434.78 | J12: 23951225,32 | K12: =K17+K22+K29+K26+K32+K43+K46+K50 -> 36562516.99
A13: Реализация комплексных программ поддержки развития дошкольных образовательных учреждений в субъектах РФ | B13: 974 | C13: 0701 | D13: 4200100 | G13: =SUM(H13:K13) -> 100000 | J13: 100000
A14: Выполнение функций бюджетными учреждениями | B14: 974 | C14: 0701 | D14: 4200100 | E14: 001 | G14: =H14+I14+J14+K14 -> 100000 | J14: 100000
A15: Увеличение стоимости основных средств | B15: 974 | C15: 0701 | D15: 4200100 | E15: 001 | F15: 310 | G15: 60000 | J15: 60000
A16: Увеличение стоимости материальных запасов | B16: 974 | C16: 0701 | D16: 4200100 | E16: 001 | F16: 340 | G16: 40000 | J16: 40000
A17: Обеспечение деятельности подведомственных учреждений | B17: 974 | C17: 0701 | D17: 4209900 | G17: =H17+I17+J17+K17 -> 4035928.7 | H17: =H18+H20 -> 433133.68 | I17: =I18+I20 -> 1169378 | J17: =J18+J20 -> 1882935.02 | K17: =K18+K20 -> 550482
A18: Расходы за счет доходов от платных услуг | B18: 974 | C18: 0701 | D18: 4209900 | E18: 900 | G18: 4029928.7 | H18: =H19 -> 433133.68 | I18: =I19 -> 1166378 | J18: =J19 -> 1879935.02 | K18: =K19 -> 550482
A19: Увеличение стоимости материальных запасов | B19: 974 | C19: 0701 | D19: 4209900 | E19: 900 | F19: 340 | G19: 4029928.7 | H19: 433133.68 | I19: 1166378 | J19: 1879935.02 | K19: 550482
A20: Расходы за счет прочих безвозмездных поступлений | B20: 974 | C20: 0701 | D20: 4209900 | E20: 910 | G20: =H20+I20+J20+K20 -> 6000 | H20: =H21 -> 0 | I20: =I21 -> 3000 | J20: =J21 -> 3000 | K20: =K21 -> 0
A21: Увеличение стоимости основных средств | B21: 974 | C21: 0701 | D21: 4209900 | E21: 910 | F21: 310 | G21: 6000 | I21: 3000 | J21: 3000
A22: Долгосрочная целевая программа "Укрепление материально-технической базы и проведение капитального ремонта зданий и сооружений учреждений, подведомственных Управлению образования города Пензы и здания Управления образования города Пензы на 2010-2012 г.г." | B22: 974 | C22: 0701 | D22: 7950600 | G22: 42957495.4 | H22: =H23 -> 100000 | I22: =I23 -> 1736161 | J22: =J23 -> 14446798.4 | K22: =K23 -> 26674536
A23: Расходы на реализацию долгосрочных целевых программ | B23: 974 | C23: 0701 | D23: 7950600 | E23: 950 | G23: 42957495.4 | H23: =H25 -> 100000 | I23: =I24+I25 -> 1736161 | J23: =J24+J25 -> 14446798.4 | K23: =K25 -> 26674536
A24: Увеличение стоимости основных средств | B24: 974 | C24: 0701 | D24: 7950600 | E24: 950 | F24: 310 | G24: =H24+I24+J24+K24 -> 1413020 | I24: 1151020 | J24: 262000
A25: Прочие работы , услуги | B25: 974 | C25: 0701 | D25: 7950600 | E25: 950 | F25: 225 | G25: 41544475.4 | H25: 100000 | I25: 585141 | J25: 14184798.4 | K25: 26674536
A26: Долгосрочная целевая программа Энергосбережения и повышения энергоэффективности в г.Пензе на 2010-2020гг | B26: 974 | C26: 0701 | D26: 7950800 | E26: 950 | G26: 193018.92 | H26: =H28 -> 0 | I26: 28894.68 | J26: =J27+J28 -> 119848.24 | K26: =K27+K28 -> 44276
A27: Работы, услуги по содержанию имущества | B27: 974 | C27: 0701 | D27: 7950800 | E27: 950 | F27: 225 | G27: =H27+I27+J27+K27 -> 124369.36 | I27: 28894.68 | J27: 81027.34 | K27: 14447.34
A28: Прочие работы, услуги | B28: 974 | C28: 0701 | D28: 7950800 | E28: 950 | F28: 226 | G28: 68649.56 | I28: 0 | J28: 38820.9 | K28: 29828.66
A29: Долгосрочная целевая программв "Многодетная семья,2009-2010годы" | B29: 974 | C29: 0701 | D29: 7953000 | G29: 38512 | H29: =H30 -> 4219 | I29: 4161 | J29: 18247 | K29: 11885
A30: Расходы на реализацию долгосрочных целевых программ | B30: 974 | C30: 0701 | D30: 7953000 | E30: 950 | G30: 38512 | H30: 4219 | I30: 4161 | J30: 18247 | K30: 11885
A31: Увеличение стоимости материальных запасов | B31: 974 | C31: 0701 | D31: 7953000 | E31: 950 | F31: 340 | G31: 38512 | H31: 4219 | I31: 4161 | J31: 18247 | K31: 11885
A32: Организация предоставления общедоступного бесплатного дошкольного образования и воспитания, содержание ребенка в дошкольном образовательном учреждении | B32: 974 | C32: 0701 | D32: 7969741 | G32: 22746769.43 | H32: =H33 -> 1979587.88 | I32: =I33 -> 7145667.12 | J32: =J33 -> 5202896.62 | K32: =K33 -> 8418617.81
A33: Оказание услуг подведомственными учреждениями | B33: 974 | C33: 0701 | D33: 7969741 | E33: 901 | G33: 22746769.43 | H33: =H34+H35+H36+H37+H38+H39+H40+H41+H42 -> 1979587.88 | I33: =I34+I35+I36+I37+I38+I39+I40+I41+I42 -> 7145667.12 | J33: =J34+J35+J36+J37+J38+J39+J40+J41+J42 -> 5202896.62 | K33: =K34+K35+K36+K37+K38+K39+K40+K41+K42 -> 8418617.81
A34: Заработная плата | B34: 974 | C34: 0701 | D34: 7969741 | E34: 901 | F34: 211 | G34: 12723902.89 | H34: 930865.73 | I34: 3975526 | J34: 3222477.14 | K34: 4595034.02
A35: Прочие выплаты | B35: 974 | C35: 0701 | D35: 7969741 | E35: 901 | F35: 212 | G35: 93214 | H35: 6200 | I35: 31450 | J35: 21800 | K35: 33764
A36: Начисления на оплату труда | B36: 974 | C36: 0701 | D36: 7969741 | E36: 901 | F36: 213 | G36: 4363464.32 | H36: 304383.98 | I36: 1374457 | J36: 870155 | K36: 1814468.34
A37: Услуги связи | B37: 974 | C37: 0701 | D37: 7969741 | E37: 901 | F37: 221 | G37: 33181.95 | H37: 2967 | I37: 11927.95 | J37: 9194 | K37: 9093
A38: Коммунальные услуги | B38: 974 | C38: 0701 | D38: 7969741 | E38: 901 | F38: 223 | G38: 3059396.5 | H38: 499131 | I38: 793448.05 | J38: 405630 | K38: 1361187.45
A39: Работы, услуги по содержанию имущества | B39: 974 | C39: 0701 | D39: 7969741 | E39: 901 | F39: 225 | G39: 175956.56 | H39: 25059.17 | I39: 60570.61 | J39: 60383.78 | K39: 29943
A40: Прочие работы, услуги, в том числе | B40: 974 | C40: 0701 | D40: 7969741 | E40: 901 | F40: 226 | G40: 239090.27 | H40: 38565 | I40: 125246.57 | J40: 62495.7 | K40: 12783
A41: Прочие расходы | B41: 974 | C41: 0701 | D41: 7969741 | E41: 901 | F41: 290 | G41: 1139742.7 | H41: 112335 | I41: 340556.7 | J41: 340863 | K41: 345988
A42: Увеличение стоимости материальных запасов | B42: 974 | C42: 0701 | D42: 7969741 | E42: 901 | F42: 340 | G42: 918820.24 | H42: 60081 | I42: 432484.24 | J42: 209898 | K42: 216357
A43: Ведомственная целевая программа развития "Дошкольное детство(2011-2013гг.)" | B43: 974 | C43: 0701 | D43: 7976302 | G43: 1542996.52 | H43: =H44 -> 84751 | I43: 211172.98 | J43: 488821.04 | K43: 758251.5
A44: Расходы на реализацию ведомственных целевых программ | B44: 974 | C44: 0701 | D44: 7976302 | E44: 951 | G44: 1542996.52 | H44: 84751 | I44: 211172.98 | J44: 488821.04 | K44: 758251.5
A45: Прочие работы, услуги | B45: 974 | C45: 0701 | D45: 7976302 | E45: 951 | F45: 340 | G45: 1542996.52 | H45: 84751 | I45: 211172.98 | J45: 488821.04 | K45: 758251.5
A46: Долгосрочная целевая программа города Пензы "Здоровый ребенок" на 2011-2013 годы | B46: 974 | C46: 0701 | D46: 7950101 | G46: 1738242 | H46: =H47 -> 0 | I46: 0 | J46: =J47 -> 1691679 | K46: 46563
A47: Расходы на реализацию долгосрочных целевых программ | B47: 974 | C47: 0701 | D47: 7950101 | E47: 950 | G47: 1738242 | H47: =H48 -> 0 | J47: =J48+J49 -> 1691679 | K47: =K48 -> 46563
A48: Увеличение стоимости основных средств | B48: 974 | C48: 0701 | D48: 7950101 | E48: 950 | F48: 310 | G48: =K48+J48+I48+H48 -> 58242 | H48: 0 | J48: 11679 | K48: 46563
A49: Прочие работы, услуги | B49: 974 | C49: 0701 | D49: 7950101 | E49: 950 | F49: 226 | G49: 1680000 | H49: =H50 -> 0 | I49: =I50 -> 0 | J49: 1680000
A50: Областная целевая программа "Энергосбережения и повышения энергетической эффективности Пенз.обл. на 2010-2020 г.г." | B50: 974 | C50: 0701 | D50: 522610 | E50: 476 | G50: 57905.68 | H50: =H51 -> 0 | I50: =I51 -> 0 | J50: =J51 -> 0 | K50: =K51 -> 57905.68
A51: Расходы на реализацию долгосрочных целевых программ | B51: 974 | C51: 0701 | D51: 522610 | E51: 476 | G51: 57905.68 | H51: =H53 -> 0 | I51: =I52+I53 -> 0 | K51: 57905.68
A52: Прочие работы, услуги | B52: 974 | C52: 0701 | D52: 522610 | E52: 476 | F52: 225 | G52: =H52+I52+J52+K52 -> 57905.68 | K52: 57905.68
A55: Заведующая С.В.Петрунина | G55: Гл.бухгалтер О.А.Зайцева

Sheet 01.09.11
J1: Ю.А.Голодяев
A2: БЮДЖЕТНАЯ СМЕТА
D3: 01.09.2011год
A4: Получатель средств бюджета | J4: коды
A5: МБДОУ № 137 | I5: ОКПО
I6: СРРПБС
A7: Единица измерения : руб. | I7: ОКЕИ | J7: 383
A9: Наименование расхода | B9: Код | G9: Сумма , руб | H9: в том чисе по кварталам
B10: раздел | C10: подраздел | D10: целевая статья расхода | E10: вид расхода | F10: КОСГУ | H10: 1квартал | I10: 2квартал | J10: 3квартал | K10: 4квартал
A11: 1 | B11: 2 | C11: 3 | D11: 4 | E11: 5 | F11: 6 | G11: 7 | H11: 8 | I11: 9 | J11: 10 | K11: 11
A12: Расходы, всего | G12: =H12+I12+J12+K12 -> 71053723.45 | H12: =H13+H18+H22+H25+H28+H39+H42 -> 2601691.56 | I12: =I13+I18+I22+I25+I28+I39+I420 -> 10295434.78 | J12: =J13+J18+J22+J25+J28+J39+J42+J46 -> 21613055.69 | K12: =K13+K18+K25+K22+K28+K39+K42+K46 -> 36543541.42
A13: Обеспечение деятельности подведомственных учреждений | B13: 974 | C13: 0701 | D13: 4209900 | G13: =H13+I13+J13+K13 -> 4035928.7 | H13: =H14+H16 -> 433133.68 | I13: =I14+I16 -> 1169378 | J13: =J14+J16 -> 1882935.02 | K13: =K14+K16 -> 550482
A14: Расходы за счет доходов от платных услуг | B14: 974 | C14: 0701 | D14: 4209900 | E14: 900 | G14: 4029928.7 | H14: =H15 -> 433133.68 | I14: =I15 -> 1166378 | J14: =J15 -> 1879935.02 | K14: =K15 -> 550482
A15: Увеличение стоимости материальных запасов | B15: 974 | C15: 0701 | D15: 4209900 | E15: 900 | F15: 340 | G15: 4029928.7 | H15: 433133.68 | I15: 1166378 | J15: 1879935.02 | K15: 550482
A16: Расходы за счет прочих безвозмездных поступлений | B16: 974 | C16: 0701 | D16: 4209900 | E16: 910 | G16: =H16+I16+J16+K16 -> 6000 | H16: =H17 -> 0 | I16: =I17 -> 3000 | J16: =J17 -> 3000 | K16: =K17 -> 0
A17: Увеличение стоимости основных средств | B17: 974 | C17: 0701 | D17: 4209900 | E17: 910 | F17: 310 | G17: 6000 | I17: 3000 | J17: 3000
A18: Долгосрочная целевая программа "Укрепление материально-технической базы и проведение капитального ремонта зданий и сооружений учреждений, подведомственных Управлению образования города Пензы и здания Управления образования города Пензы на 2010-2012 г.г." | B18: 974 | C18: 0701 | D18: 7950600 | G18: 39945614.12 | H18: =H19 -> 100000 | I18: =I19 -> 1736161 | J18: =J19 -> 11434917.12 | K18: =K19 -> 26674536
A19: Расходы на реализацию долгосрочных целевых программ | B19: 974 | C19: 0701 | D19: 7950600 | E19: 950 | G19: 39945614.12 | H19: =H21 -> 100000 | I19: =I20+I21 -> 1736161 | J19: =J20+J21 -> 11434917.12 | K19: =K21 -> 26674536
A20: Увеличение стоимости основных средств | B20: 974 | C20: 0701 | D20: 7950600 | E20: 950 | F20: 310 | G20: =H20+I20+J20+K20 -> 1413020 | I20: 1151020 | J20: 262000
A21: Прочие работы , услуги | B21: 974 | C21: 0701 | D21: 7950600 | E21: 950 | F21: 225 | G21: 38532594.12 | H21: 100000 | I21: 585141 | J21: 11172917.12 | K21: 26674536
A22: Расходы на реализацию долгосрочных целевых программ | B22: 974 | C22: 0701 | D22: 7950800 | E22: 950 | G22: 193018.92 | H22: =H24 -> 0 | I22: 28894.68 | J22: =J23+J24 -> 119848.24 | K22: =K23+K24 -> 44276
A23: Работы, услуги по содержанию имущества | B23: 974 | C23: 0701 | D23: 7950800 | E23: 950 | F23: 225 | G23: =H23+I23+J23+K23 -> 124369.36 | I23: 28894.68 | J23: 81027.34 | K23: 14447.34
A24: Прочие работы, услуги | B24: 974 | C24: 0701 | D24: 7950800 | E24: 950 | F24: 226 | G24: 68649.56 | I24: 0 | J24: 38820.9 | K24: 29828.66
A25: Долгосрочная целевая программв "Многодетная семья,2009-2010годы" | B25: 974 | C25: 0701 | D25: 7953000 | G25: 38512 | H25: =H26 -> 4219 | I25: 4161 | J25: 18247 | K25: 11885
A26: Расходы на реализацию долгосрочных целевых программ | B26: 974 | C26: 0701 | D26: 7953000 | E26: 950 | G26: 38512 | H26: 4219 | I26: 4161 | J26: 18247 | K26: 11885
A27: Увеличение стоимости материальных запасов | B27: 974 | C27: 0701 | D27: 7953000 | E27: 950 | F27: 340 | G27: 38512 | H27: 4219 | I27: 4161 | J27: 18247 | K27: 11885
A28: Организация предоставления общедоступного бесплатного дошкольного образования и воспитания, содержание ребенка в дошкольном образовательном учреждении | B28: 974 | C28: 0701 | D28: 7969741 | G28: 23501505.51 | H28: =H29 -> 1979587.88 | I28: =I29 -> 7145667.12 | J28: =J29 -> 5961232.7 | K28: =K29 -> 8415017.81
A29: Оказание услуг подведомственными учреждениями | B29: 974 | C29: 0701 | D29: 7969741 | E29: 901 | G29: 23501505.51 | H29: =H30+H31+H32+H33+H34+H35+H36+H37+H38 -> 1979587.88 | I29: =I30+I31+I32+I33+I34+I35+I36+I37+I38 -> 7145667.12 | J29: =J30+J31+J32+J33+J34+J35+J36+J37+J38 -> 5961232.7 | K29: =K30+K31+K32+K33+K34+K35+K36+K37+K38 -> 8415017.81
A30: Заработная плата | B30: 974 | C30: 0701 | D30: 7969741 | E30: 901 | F30: 211 | G30: 13239586.75 | H30: 930865.73 | I30: 3975526 | J30: 3738161 | K30: 4595034.02
A31: Прочие выплаты | B31: 974 | C31: 0701 | D31: 7969741 | E31: 901 | F31: 212 | G31: 98864 | H31: 6200 | I31: 31450 | J31: 27450 | K31: 33764
A32: Начисления на оплату труда | B32: 974 | C32: 0701 | D32: 7969741 | E32: 901 | F32: 213 | G32: 4602610.32 | H32: 304383.98 | I32: 1374457 | J32: 1109301 | K32: 1814468.34
A33: Услуги связи | B33: 974 | C33: 0701 | D33: 7969741 | E33: 901 | F33: 221 | G33: 33181.95 | H33: 2967 | I33: 11927.95 | J33: 9194 | K33: 9093
A34: Коммунальные услуги | B34: 974 | C34: 0701 | D34: 7969741 | E34: 901 | F34: 223 | G34: 3059396.5 | H34: 499131 | I34: 793448.05 | J34: 405630 | K34: 1361187.45
A35: Работы, услуги по содержанию имущества | B35: 974 | C35: 0701 | D35: 7969741 | E35: 901 | F35: 225 | G35: 170212.78 | H35: 25059.17 | I35: 60570.61 | J35: 54640 | K35: 29943
A36: Прочие работы, услуги, в том числе | B36: 974 | C36: 0701 | D36: 7969741 | E36: 901 | F36: 226 | G36: 236490.27 | H36: 38565 | I36: 125246.57 | J36: 59895.7 | K36: 12783
A37: Прочие расходы | B37: 974 | C37: 0701 | D37: 7969741 | E37: 901 | F37: 290 | G37: 1142342.7 | H37: 112335 | I37: 340556.7 | J37: 347063 | K37: 342388
A38: Увеличение стоимости материальных запасов | B38: 974 | C38: 0701 | D38: 7969741 | E38: 901 | F38: 340 | G38: 918820.24 | H38: 60081 | I38: 432484.24 | J38: 209898 | K38: 216357
A39: Ведомственная целевая программа развития "Дошкольное детство(2011-2013гг.)" | B39: 974 | C39: 0701 | D39: 7976302 | G39: 1542996.52 | H39: =H40 -> 84751 | I39: 211172.98 | J39: 488821.04 | K39: 758251.5
A40: Расходы на реализацию ведомственных целевых программ | B40: 974 | C40: 0701 | D40: 7976302 | E40: 951 | G40: 1542996.52 | H40: 84751 | I40: 211172.98 | J40: 488821.04 | K40: 758251.5
A41: Прочие работы, услуги | B41: 974 | C41: 0701 | D41: 7976302 | E41: 951 | F41: 340 | G41: 1542996.52 | H41: 84751 | I41: 211172.98 | J41: 488821.04 | K41: 758251.5
A42: Долгосрочная целевая программа города Пензы "Здоровый ребенок" на 2011-2013 годы | B42: 974 | C42: 0701 | D42: 7950101 | G42: 1738242 | H42: =H43 -> 0 | I42: 0 | J42: =J43 -> 1691679 | K42: 46563
A43: Расходы на реализацию долгосрочных целевых программ | B43: 974 | C43: 0701 | D43: 7950101 | E43: 950 | G43: 1784805 | H43: =H44 -> 0 | I43: =K44+I45 -> 46563 | J43: =J44+J45 -> 1691679 | K43: =K44 -> 46563
A44: Увеличение стоимости основных средств | B44: 974 | C44: 0701 | D44: 7950101 | E44: 950 | F44: 310 | G44: =K44+J44+I44+H44 -> 58242 | H44: 0 | J44: 11679 | K44: 46563
A45: Прочие работы, услуги | B45: 974 | C45: 0701 | D45: 7950101 | E45: 950 | F45: 226 | G45: 1680000 | H45: =H46 -> 0 | I45: =I46 -> 0 | J45: 1680000
A46: Областная целевая программа "Энергосбережения и повышения энергетической эффективности Пенз.обл. на 2010-2020 г.г." | B46: 974 | C46: 0701 | D46: 522610 | E46: 476 | G46: 57905.68 | H46: =H47 -> 0 | I46: =I47 -> 0 | J46: =J47 -> 15375.57 | K46: =K47 -> 42530.11
A47: Расходы на реализацию долгосрочных целевых программ | B47: 974 | C47: 0701 | D47: 522610 | E47: 476 | G47: 57905.68 | H47: =H49 -> 0 | I47: =I48+I49 -> 0 | J47: =J48 -> 15375.57 | K47: =K48 -> 42530.11
A48: Прочие работы, услуги | B48: 974 | C48: 0701 | D48: 522610 | E48: 476 | F48: 225 | G48: =H48+I48+J48+K48 -> 57905.68 | J48: 15375.57 | K48: 42530.11
A51: Заведующая С.В.Петрунина | G51: Гл.бухгалтер О.А.Зайцева

Sheet смета 21.03.2011
H1: УТВЕРЖДАЮ
H2: Начальник Управления образования
H3: города Пензы
J4: Ю.А.Голодяев
A5: БЮДЖЕТНАЯ СМЕТА
E6: НА 21.марта. 2011 ГОД
A7: Получатель средств бюджета | J7: коды
A8: МДОУ № 137 | I8: ОКПО
I9: СРРПБС
A10: Единица измерения : руб. | I10: ОКЕИ | J10: 383
A12: Наименование расхода | B12: Код | G12: Сумма , руб | H12: в том чисе по кварталам
B13: раздел | C13: подраздел | D13: целевая статья расхода | E13: вид расхода | F13: КОСГУ | H13: 1квартал | I13: 2квартал | J13: 3квартал | K13: 4квартал
A14: 1 | B14: 2 | C14: 3 | D14: 4 | E14: 5 | F14: 6 | G14: 7 | H14: 8 | I14: 9 | J14: 10 | K14: 11
A15: Расходы, всего | G15: =H15+I15+J15+K15 -> 46014262.98 | H15: =H16+H27+H30+H41+H21+H24 -> 4472536.83 | I15: =I16+I27+I30+I41+I21+I24+I44 -> 8647641.15 | J15: =J16+J21+J24+J27+J30+J41+J45 -> 10650038 | K15: =K16+K27+K30+K41+K21+K24 -> 22244047
A16: Обеспечение деятельности подведомственных учреждений | B16: 974 | C16: 0701 | D16: 4209900 | G16: =H16+I16+J16+K16 -> 1750394 | H16: =H17+H19 -> 279913 | I16: =I17+I19 -> 535195 | J16: =J17+J19 -> 730993 | K16: =K17+K19 -> 204293
A17: Расходы за счет доходов от платных услуг | B17: 974 | C17: 0701 | D17: 4209900 | E17: 900 | G17: 1744394 | H17: =H18 -> 279913 | I17: =I18 -> 532195 | J17: =J18 -> 727993 | K17: =K18 -> 204293
A18: Увеличение стоимости материальных запасов | B18: 974 | C18: 0701 | D18: 4209900 | E18: 900 | F18: 340 | G18: 1744394 | H18: 279913 | I18: 532195 | J18: 727993 | K18: 204293
A19: Расходы за счет прочих безвозмездных поступлений | B19: 974 | C19: 0701 | D19: 4209900 | E19: 910 | G19: =H19+I19+J19+K19 -> 6000 | H19: =H20 -> 0 | I19: =I20 -> 3000 | J19: =J20 -> 3000 | K19: =K20 -> 0
A20: Увеличение стоимости основных средств | B20: 974 | C20: 0701 | D20: 4209900 | E20: 910 | F20: 310 | G20: 6000 | I20: 3000 | J20: 3000
A21: Долгосрочная целевая программа "Укрепление материально-технической базы и проведение капитального ремонта зданий и сооружений учреждений, подведомственных Управлению образования города Пензы и здания Управления образования города Пензы на 2010-2012 г.г." | B21: 974 | C21: 0701 | D21: 7950600 | G21: 21236128.12 | H21: =H22 -> 2082467.12 | I21: 1150477 | J21: 3328648 | K21: 14674536
A22: Расходы на реализацию долгосрочных целевых программ | B22: 974 | C22: 0701 | D22: 7950600 | E22: 950 | G22: 21236128.12 | H22: 2082467.12 | I22: 1150477 | J22: 3328648 | K22: 14674536
A23: Прочие работы , услуги | B23: 974 | C23: 0701 | D23: 7950600 | E23: 950 | F23: 225 | G23: 21236128.12 | H23: 2082467.12 | I23: 1150477 | J23: 3328648 | K23: 14674536
A24: Долгосрочная целевая программа Энергосбережения и повышения энергоэффективности в городе Пензе на период 2010-2020 годов | B24: 974 | C24: 0701 | D24: 7950800 | G24: 265442 | H24: 44276 | I24: 44276 | J24: 132614 | K24: 44276
A25: Расходы на реализацию долгосрочных целевых программ | B25: 974 | C25: 0701 | D25: 7950800 | E25: 950 | G25: 265442 | H25: 44276 | I25: 44276 | J25: 132614 | K25: 44276
A26: Прочие работы, услуги | B26: 974 | C26: 0701 | D26: 7950800 | E26: 950 | F26: 226 | G26: 265442 | H26: 44276 | I26: 44276 | J26: 132614 | K26: 44276
A27: Долгосрочная целевая программв "Многодетная семья,2009-2010годы" | B27: 974 | C27: 0701 | D27: 7953000 | G27: 25623 | H27: =H28 -> 4219 | I27: 5866 | J27: 8747 | K27: 6791
A28: Расходы на реализацию долгосрочных целевых программ | B28: 974 | C28: 0701 | D28: 7953000 | E28: 950 | G28: 25623 | H28: 4219 | I28: 5866 | J28: 8747 | K28: 6791
A29: Увеличение стоимости материальных запасов | B29: 974 | C29: 0701 | D29: 7953000 | E29: 950 | F29: 340 | G29: 25623 | H29: 4219 | I29: 5866 | J29: 8747 | K29: 6791
A30: Организация предоставления общедоступного бесплатного дошкольного образования и воспитания, содержание ребенка в дошкольном образовательном учреждении | B30: 974 | C30: 0701 | D30: 7969741 | G30: 21412976.86 | H30: =H31 -> 1976910.71 | I30: =I31 -> 6725425.15 | J30: =J31 -> 5538449 | K30: =K31 -> 7172192
A31: Оказание услуг подведомственными учреждениями | B31: 974 | C31: 0701 | D31: 7969741 | E31: 901 | G31: 21412976.86 | H31: =H32+H33+H34+H35+H36+H37+H38+H39+H40 -> 1976910.71 | I31: =I32+I33+I34+I35+I36+I37+I38+I39+I40 -> 6725425.15 | J31: =J32+J33+J34+J35+J36+J37+J38+J39+J40 -> 5538449 | K31: =K32+K33+K34+K35+K36+K37+K38+K39+K40 -> 7172192
A32: Заработная плата | B32: 974 | C32: 0701 | D32: 7969741 | E32: 901 | F32: 211 | G32: 13525557.41 | H32: 930865.73 | I32: 4404691.68 | J32: 3763161 | K32: 4426839
A33: Прочие выплаты | B33: 974 | C33: 0701 | D33: 7969741 | E33: 901 | F33: 212 | G33: 100100 | H33: 8600 | I33: 27450 | J33: 27450 | K33: 36600
A34: Начисления на оплату труда | B34: 974 | C34: 0701 | D34: 7969741 | E34: 901 | F34: 213 | G34: 4691941.45 | H34: 304383.98 | I34: 1497102.47 | J34: 1109301 | K34: 1781154
A35: Услуги связи | B35: 974 | C35: 0701 | D35: 7969741 | E35: 901 | F35: 221 | G35: 11867 | H35: 2967 | I35: 2967 | J35: 2967 | K35: 2966
A36: Коммунальные услуги | B36: 974 | C36: 0701 | D36: 7969741 | E36: 901 | F36: 223 | G36: 1385498 | H36: 499131 | I36: 215776 | J36: 182043 | K36: 488548
A37: Работы, услуги по содержанию имущества | B37: 974 | C37: 0701 | D37: 7969741 | E37: 901 | F37: 225 | G37: 58682 | H37: 19458 | I37: 10515 | J37: 18193 | K37: 10516
A38: Прочие работы, услуги, в том числе | B38: 974 | C38: 0701 | D38: 7969741 | E38: 901 | F38: 226 | G38: 202879 | H38: 38565 | I38: 145753 | J38: 15365 | K38: 3196
A39: Прочие расходы | B39: 974 | C39: 0701 | D39: 7969741 | E39: 901 | F39: 290 | G39: 1138449 | H39: 112859 | I39: 341863 | J39: 341863 | K39: 341864
A40: Увеличение стоимости материальных запасов | B40: 974 | C40: 0701 | D40: 7969741 | E40: 901 | F40: 340 | G40: 298003 | H40: 60081 | I40: 79307 | J40: 78106 | K40: 80509
A41: Ведомственная целевая программа развития "Дошкольное детство(2011-2013гг.)" | B41: 974 | C41: 0701 | D41: 7976302 | G41: 525457 | H41: =H42 -> 84751 | I41: 139839 | J41: 158908 | K41: 141959
A42: Расходы на реализацию ведомственных целевых программ | B42: 974 | C42: 0701 | D42: 7976302 | E42: 951 | G42: 525457 | H42: 84751 | I42: 139839 | J42: 158908 | K42: 141959
A43: Прочие работы, услуги | B43: 974 | C43: 0701 | D43: 7976302 | E43: 951 | F43: 340 | G43: 525457 | H43: 84751 | I43: 139839 | J43: 158908 | K43: 141959
A44: Долгосрочная целевая программа города Пензы "Здоровый ребенок" на 2011-2013 годы | B44: 974 | C44: 0701 | D44: 7950101 | G44: 798242 | H44: =H45 -> 0 | I44: =I45 -> 46563 | J44: 751679 | K44: 0
A45: Расходы на реализацию долгосрочных целевых программ | B45: 974 | C45: 0701 | D45: 7950101 | E45: 950 | G45: 798242 | H45: 0 | I45: =I46+I47 -> 46563 | J45: =J46+J47 -> 751679 | K45: 0
A46: Увеличение стоимости основных средств | B46: 974 | C46: 0701 | D46: 7950101 | E46: 950 | F46: 310 | G46: 58242 | H46: 0 | I46: 46563 | J46: 11679 | K46: 0
A47: Прочие работы, услуги | B47: 974 | C47: 0701 | D47: 7950101 | E47: 950 | F47: 226 | G47: 740000 | H47: =H48 -> 0 | I47: =I48 -> 0 | J47: 740000 | K47: =K48 -> 0
A49: Заведующая | D49: С.В.Петрунина
A50: Гл.бухгалтер | D50: О.А.Зайцева
